{"text_format":"1","workbook":"xlsx","n_sheets":21,"sheets":["ورقة1","ورقة1 (2)","ورقة1 (3)","ورقة1 (4)","ورقة1 (5)","ورقة1 (6)","ورقة1 (7)","ورقة1 (8)","ورقة1 (9)","ورقة1 (10)","ورقة1 (11)","ورقة1 (12)","ورقة1 (13)","ورقة1 (14)","ورقة1 (15)","ورقة1 (16)","ورقة1 (17)","ورقة1 (18)","ورقة1 (19)","ورقة1 (20)","ورقة3"],"not_rendered":{"charts":0,"images":2,"macros":0,"external_links":0,"defined_names":0,"comments":0,"pivot_tables":0},"unopened":[],"bounds":{"document_bytes":16777216,"sheet_cells":100000,"rows_first":2000,"rows_last":500,"rows_between":2000,"halvings":0,"cell_chars":16384,"cell_head_chars":4096},"cells_cut":0,"cells_raw":0,"read":"whole","date_system":"1900"}

{"sheet":"ورقة1","index":0,"n_rows":28,"n_cols":28,"rows_kept":28,"cut":false,"hidden":false,"merged":[[29,3,29,4],[29,5,29,6],[4,21,4,22],[5,21,5,22],[2,21,2,22],[3,21,3,22],[2,19,2,20],[3,19,3,20],[4,19,4,20],[5,19,5,20],[5,7,5,9],[4,6,4,8],[2,3,2,5],[4,3,4,5],[1,3,1,5],[6,3,6,10],[5,3,5,5],[3,3,3,5],[3,6,3,7]]}
[null,null,null,"برنامج المتابعة الالكترونية التجريبي لحلقة عبد الله بن مسعود",null,null,null,"    بمكة المكرمة",null,"التابعة لجمعية","تحفيظ القرآن الكريم",null,null,"                     نسعى لمواكبة العصر في تطوراته لخدمة كتاب الله عزوجل",null,null,null,1,"تعليما",2,"وتعلما",3,"وتقنيا","               على وفق خطة مرسومة",null,"بالقرآن نرقى وبه نرتقي","أنشأه: عبد الرحمن إمام"]
[null,null,"   تاريخ بداية الحلقة"," معلم الحلقة",null,null,null,null,null,null,"عدد أسطر الدرس",{"$f":"I9+I10+I11+I12+I13+I14+I15+I16+I17+I18+I19+I20+I21+I22+I23+I24+I25+I26+I27+I28","v":0},null,"عدد صفحات الدرس المحفوظ",{"$f":"L2/15","v":0},null,"عدد الأخطاء ",{"$f":"J9+J10+J11+J12+J13+J14+J15+J16+J17+J18+J19+J20+J21+J22+J23+J24+J25+J26+J27+J28","v":0},null,null,"المواظبة","السلوك",null,"      نسبة الفصل الأول ","المستوى الحالي","أبيات التحفة المحفوظة","معدل الدرجات"]
[null,null," 1441/12/18",null,null,null,null,null,null,null,"عدد أسطر بداية السورة",{"$f":"L9+L10+L11+L12+L13+L14+L15+L16+L17+L18+L19+L20+L21+L22+L23+L24+L25+L26+L27+L28","v":0},null,"عدد صفحات بداية السورة",{"$f":"L3/15","v":0},null,"عدد الأخطاء ",{"$f":"M9+M10+M11+M12+M13+M14+M15+M16+M17+M18+M19+M20+M21+M22+M23+M24+M25+M26+M27+M28","v":0},null,"  حضور مبكر",null,"عدد أيام التأخر",null,{"$f":"AA3","v":0},null,null,{"$f":"AA5/6","v":0}]
[null,null,"اسم الطالب",null,null,null,"اسم الحلقة",null,null,null,"عدد أسطر سورة قبل الدرس",{"$f":"O9+O10+O11+O12+O13+O14+O15+O16+O17+O18+O19+O20+O21+O22+O23+O24+O25+O26+O27+O28","v":0},null,"عدد صفحات سورة قبل الدرس",{"$f":"L4/15","v":0},null,"عدد الأخطاء ",{"$f":"P9+P10+P11+P12+P13+P14+P15+P16+P17+P18+P19+P20+P21+P22+P23+P24+P25+P26+P27+P28","v":0},null,{"$f":"COUNTIFS(G9:G28,\"ح\")","v":0},null,{"$f":"COUNTIF(G9:G28,\"ت\")","v":0},null,"نسبة الفصل الثاني","درجة أخر اختبار ","أبيات الجزرية المحفوظة","مجموع النقاط"]
[null,null,"رسالة خاصة بالطالب",null,null,null,"عبد الله بن مسعود رضي الله عنه",null,null,null,"عدد أسطر المراجعة",{"$f":"R9+R10+R11+R12+R13+R14+R15+R16+R17+R18+R19+R20+R21+R22+R23+R24+R25+R26+R27+R28","v":0},null,"عدد صفحات المراجعة",{"$f":"L5/15","v":0},null,"عدد الأخطاء ",{"$f":"S9+S10+S11+S12+S13+S14+S15+S16+S17+S18+S19+S20+S21+S22+S23+S24+S25+S26+S27+S28","v":0},null,"استئذان",null,"عدد  أيام الغياب",null,null,null,null,{"$f":"AA9+AA10+AA11+AA12+AA13+AA14+AA15+AA16+AA17+AA18+AA19+AA20+AA21+AA22+AA23+AA24+AA25+AA26+AA27+AA28","v":0}]
[null,null,"رسالة خاصة بالحلقة",null,null,null,"وقتها","بعد صلاة العشاء عن بعد",null,null,null,null,null,"المجموع الكلي لصفحات المراجعة",null,null,null,null,null,{"$f":"COUNTIF(G9:G28,\"م\")","v":0},null,{"$f":"COUNTIF(G9:G28,\"غ\")","v":0},null,"المعدل الكلي",null,"أبيات الشاطبية المحفوظة","النقاط المستبدلة"]
[null,null,null,"مدة تجربة البرنامج من تاريخ 1442/3/22هـ إلى نهاية الفصل الأول 1442/4/25 هــ",null,null,null,null,null,null,null,null,null,{"$f":"O5+O4+O3","v":0}]
[null,null,"الأيام ","التاريخ","المسار","المقررات","تحضير","الدرس","سطر","خطأ","بداية السورة","سطر","خطأ","سورة قبل الدرس","سطر","خطأ","المراجعة","سطر","خطأ","ملاحظات في التسميع","الدرس  10","التجويد 10","بداية السورة 10","سورة قبل الدرس 10","المراجعة 10","المشاركة+ التفاعل 10","مجموع النقاط اليومي","الملاحظات"]
[null,null,"الاحد","1442/3/29",null,null,null,null,null,null,null,null,null,null,null,null,null,null,null,null,null,null,null,null,null,null,{"$f":"Z9+Y9+X9+W9+U9+V9","v":0}]
[null,null,"الاثنين","1442/4/1",null,null,null,null,null,null,null,null,null,null,null,null,null,null,null,null,null,null,null,null,null,null,{"$f":"Z10+Y10+X10+W10+U10+V10","v":0}]
[null,null,"الثلاثاء","1442/4/2",null,null,null,null,null,null,null,null,null,null,null,null,null,null,null,null,null,null,null,null,null,null,0]
[null,null,"الاربعاء","1442/4/3",null,null,null,null,null,null,null,null,null,null,null,null,null,null,null,null,null,null,null,null,null,null,0]
[null,null,"الخميس","1442/4/4",null,null,null,null,null,null,null,null,null,null,null,null,null,null,null,null,null,null,null,null,null,null,0]
[null,null,"الاحد","1442/4/7",null,null,null,null,null,null,null,null,null,null,null,null,null,null,null,null,null,null,null,null,null,null,0]
[null,null,"الاثنين","1442/4/8",null,null,null,null,null,null,null,null,null,null,null,null,null,null,null,null,null,null,null,null,null,null,0]
[null,null,"الثلاثاء","1442/4/9",null,null,null,null,null,null,null,null,null,null,null,null,null,null,null,null,null,null,null,null,null,null,0]
[null,null,"الاربعاء","1442/4/10",null,null,null,null,null,null,null,null,null,null,null,null,null,null,null,null,null,null,null,null,null,null,0]
[null,null,"الخميس","1442/4/11",null,null,null,null,null,null,null,null,null,null,null,null,null,null,null,null,null,null,null,null,null,null,0]
[null,null,"الاحد","1442/4/14",null,null,null,null,null,null,null,null,null,null,null,null,null,null,null,null,null,null,null,null,null,null,0]
[null,null,"الاثنين","1442/4/15",null,null,null,null,null,null,null,null,null,null,null,null,null,null,null,null,null,null,null,null,null,null,0]
[null,null,"الثلاثاء","1442/4/16",null,null,null,null,null,null,null,null,null,null,null,null,null,null,null,null,null,null,null,null,null,null,0]
[null,null,"الاربعاء","1442/4/17",null,null,null,null,null,null,null,null,null,null,null,null,null,null,null,null,null,null,null,null,null,null,0]
[null,null,"الخميس","1442/4/18",null,null,null,null,null,null,null,null,null,null,null,null,null,null,null,null,null,null,null,null,null,null,0]
[null,null,"الاحد","1442/4/21",null,null,null,null,null,null,null,null,null,null,null,null,null,null,null,null,null,null,null,null,null,null,0]
[null,null,"الاثنين","1442/4/22",null,null,null,null,null,null,null,null,null,null,null,null,null,null,null,null,null,null,null,null,null,null,0]
[null,null,"الثلاثاء","1442/4/23",null,null,null,null,null,null,null,null,null,null,null,null,null,null,null,null,null,null,null,null,null,null,0]
[null,null,"الاربعاء","1442/4/24",null,null,null,null,null,null,null,null,null,null,null,null,null,null,null,null,null,null,null,null,null,null,0]
[null,null,"الخميس","1442/4/25",null,null,null,null,null,null,null,null,null,null,null,null,null,null,null,null,null,null,null,null,null,null,0]

{"sheet":"ورقة1 (2)","index":1,"n_rows":28,"n_cols":28,"rows_kept":28,"cut":false,"hidden":false,"merged":[[1,3,1,5],[2,3,2,5],[2,19,2,20],[2,21,2,22],[3,3,3,5],[3,6,3,7],[3,19,3,20],[3,21,3,22],[4,19,4,20],[4,21,4,22],[5,3,5,5],[5,7,5,9],[5,19,5,20],[5,21,5,22],[6,3,6,10],[29,3,29,4],[29,5,29,6],[4,3,4,5],[4,6,4,8]]}
[null,null,null,"برنامج المتابعة الالكترونية التجريبي لحلقة عبد الله بن مسعود",null,null,null,"    بمكة المكرمة",null,"التابعة لجمعية","تحفيظ القرآن الكريم",null,null,"                     نسعى لمواكبة العصر في تطوراته لخدمة كتاب الله عزوجل",null,null,null,1,"تعليما",2,"وتعلما",3,"وتقنيا","               على وفق خطة مرسومة",null,"بالقرآن نرقى وبه نرتقي","أنشأه: عبد الرحمن إمام"]
[null,null,"   تاريخ بداية الحلقة"," معلم الحلقة",null,null,null,null,null,null,"عدد أسطر الدرس",{"$f":"I9+I10+I11+I12+I13+I14+I15+I16+I17+I18+I19+I20+I21+I22+I23+I24+I25+I26+I27+I28","v":0},null,"عدد صفحات الدرس المحفوظ",{"$f":"L2/15","v":0},null,"عدد الأخطاء ",{"$f":"J9+J10+J11+J12+J13+J14+J15+J16+J17+J18+J19+J20+J21+J22+J23+J24+J25+J26+J27+J28","v":0},null,null,"المواظبة","السلوك",null,"      نسبة الفصل الأول ","المستوى الحالي","أبيات التحفة المحفوظة","معدل الدرجات"]
[null,null," 1441/12/18",null,null,null,null,null,null,null,"عدد أسطر بداية السورة",{"$f":"L9+L10+L11+L12+L13+L14+L15+L16+L17+L18+L19+L20+L21+L22+L23+L24+L25+L26+L27+L28","v":0},null,"عدد صفحات بداية السورة",{"$f":"L3/15","v":0},null,"عدد الأخطاء ",{"$f":"M9+M10+M11+M12+M13+M14+M15+M16+M17+M18+M19+M20+M21+M22+M23+M24+M25+M26+M27+M28","v":0},null,"  حضور مبكر",null,"عدد أيام التأخر",null,{"$f":"AA3","v":0},null,null,{"$f":"AA5/6","v":0}]
[null,null,"اسم الطالب",null,null,null,"اسم الحلقة",null,null,null,"عدد أسطر سورة قبل الدرس",{"$f":"O9+O10+O11+O12+O13+O14+O15+O16+O17+O18+O19+O20+O21+O22+O23+O24+O25+O26+O27+O28","v":0},null,"عدد صفحات سورة قبل الدرس",{"$f":"L4/15","v":0},null,"عدد الأخطاء ",{"$f":"P9+P10+P11+P12+P13+P14+P15+P16+P17+P18+P19+P20+P21+P22+P23+P24+P25+P26+P27+P28","v":0},null,{"$f":"COUNTIFS(G9:G28,\"ح\")","v":0},null,{"$f":"COUNTIF(G9:G28,\"ت\")","v":0},null,"نسبة الفصل الثاني","درجة أخر اختبار ","أبيات الجزرية المحفوظة","مجموع النقاط"]
[null,null,"رسالة خاصة بالطالب",null,null,null,"عبد الله بن مسعود رضي الله عنه",null,null,null,"عدد أسطر المراجعة",{"$f":"R9+R10+R11+R12+R13+R14+R15+R16+R17+R18+R19+R20+R21+R22+R23+R24+R25+R26+R27+R28","v":0},null,"عدد صفحات المراجعة",{"$f":"L5/15","v":0},null,"عدد الأخطاء ",{"$f":"S9+S10+S11+S12+S13+S14+S15+S16+S17+S18+S19+S20+S21+S22+S23+S24+S25+S26+S27+S28","v":0},null,"استئذان",null,"عدد  أيام الغياب",null,null,null,null,{"$f":"AA9+AA10+AA11+AA12+AA13+AA14+AA15+AA16+AA17+AA18+AA19+AA20+AA21+AA22+AA23+AA24+AA25+AA26+AA27+AA28","v":0}]
[null,null,"رسالة خاصة بالحلقة",null,null,null,"وقتها","بعد صلاة العشاء عن بعد",null,null,null,null,null,"المجموع الكلي لصفحات المراجعة",null,null,null,null,null,{"$f":"COUNTIF(G9:G28,\"م\")","v":0},null,{"$f":"COUNTIF(G9:G28,\"غ\")","v":0},null,"المعدل الكلي",null,"أبيات الشاطبية المحفوظة","النقاط المستبدلة"]
[null,null,null,"مدة تجربة البرنامج من تاريخ 1442/3/22هـ إلى نهاية الفصل الأول 1442/4/25 هــ",null,null,null,null,null,null,null,null,null,{"$f":"O5+O4+O3","v":0}]
[null,null,"الأيام ","التاريخ","المسار","المقررات","تحضير","الدرس","سطر","خطأ","بداية السورة","سطر","خطأ","سورة قبل الدرس","سطر","خطأ","المراجعة","سطر","خطأ","ملاحظات في التسميع","الدرس  10","التجويد 10","بداية السورة 10","سورة قبل الدرس 10","المراجعة 10","المشاركة+ التفاعل 10","مجموع النقاط اليومي","الملاحظات"]
[null,null,"الاحد","1442/3/29",null,null,null,null,null,null,null,null,null,null,null,null,null,null,null,null,null,null,null,null,null,null,{"$f":"Z9+Y9+X9+W9+U9+V9","v":0}]
[null,null,"الاثنين","1442/4/1",null,null,null,null,null,null,null,null,null,null,null,null,null,null,null,null,null,null,null,null,null,null,{"$f":"Z10+Y10+X10+W10+U10+V10","v":0}]
[null,null,"الثلاثاء","1442/4/2",null,null,null,null,null,null,null,null,null,null,null,null,null,null,null,null,null,null,null,null,null,null,0]
[null,null,"الاربعاء","1442/4/3",null,null,null,null,null,null,null,null,null,null,null,null,null,null,null,null,null,null,null,null,null,null,0]
[null,null,"الخميس","1442/4/4",null,null,null,null,null,null,null,null,null,null,null,null,null,null,null,null,null,null,null,null,null,null,0]
[null,null,"الاحد","1442/4/7",null,null,null,null,null,null,null,null,null,null,null,null,null,null,null,null,null,null,null,null,null,null,0]
[null,null,"الاثنين","1442/4/8",null,null,null,null,null,null,null,null,null,null,null,null,null,null,null,null,null,null,null,null,null,null,0]
[null,null,"الثلاثاء","1442/4/9",null,null,null,null,null,null,null,null,null,null,null,null,null,null,null,null,null,null,null,null,null,null,0]
[null,null,"الاربعاء","1442/4/10",null,null,null,null,null,null,null,null,null,null,null,null,null,null,null,null,null,null,null,null,null,null,0]
[null,null,"الخميس","1442/4/11",null,null,null,null,null,null,null,null,null,null,null,null,null,null,null,null,null,null,null,null,null,null,0]
[null,null,"الاحد","1442/4/14",null,null,null,null,null,null,null,null,null,null,null,null,null,null,null,null,null,null,null,null,null,null,0]
[null,null,"الاثنين","1442/4/15",null,null,null,null,null,null,null,null,null,null,null,null,null,null,null,null,null,null,null,null,null,null,0]
[null,null,"الثلاثاء","1442/4/16",null,null,null,null,null,null,null,null,null,null,null,null,null,null,null,null,null,null,null,null,null,null,0]
[null,null,"الاربعاء","1442/4/17",null,null,null,null,null,null,null,null,null,null,null,null,null,null,null,null,null,null,null,null,null,null,0]
[null,null,"الخميس","1442/4/18",null,null,null,null,null,null,null,null,null,null,null,null,null,null,null,null,null,null,null,null,null,null,0]
[null,null,"الاحد","1442/4/21",null,null,null,null,null,null,null,null,null,null,null,null,null,null,null,null,null,null,null,null,null,null,0]
[null,null,"الاثنين","1442/4/22",null,null,null,null,null,null,null,null,null,null,null,null,null,null,null,null,null,null,null,null,null,null,0]
[null,null,"الثلاثاء","1442/4/23",null,null,null,null,null,null,null,null,null,null,null,null,null,null,null,null,null,null,null,null,null,null,0]
[null,null,"الاربعاء","1442/4/24",null,null,null,null,null,null,null,null,null,null,null,null,null,null,null,null,null,null,null,null,null,null,0]
[null,null,"الخميس","1442/4/25",null,null,null,null,null,null,null,null,null,null,null,null,null,null,null,null,null,null,null,null,null,null,0]

{"sheet":"ورقة1 (3)","index":2,"n_rows":28,"n_cols":28,"rows_kept":28,"cut":false,"hidden":false,"merged":[[1,3,1,5],[2,3,2,5],[2,19,2,20],[2,21,2,22],[3,3,3,5],[3,6,3,7],[3,19,3,20],[3,21,3,22],[4,19,4,20],[4,21,4,22],[5,3,5,5],[5,7,5,9],[5,19,5,20],[5,21,5,22],[6,3,6,10],[29,3,29,4],[29,5,29,6],[4,3,4,5],[4,6,4,8]]}
[null,null,null,"برنامج المتابعة الالكترونية التجريبي لحلقة عبد الله بن مسعود",null,null,null,"    بمكة المكرمة",null,"التابعة لجمعية","تحفيظ القرآن الكريم",null,null,"                     نسعى لمواكبة العصر في تطوراته لخدمة كتاب الله عزوجل",null,null,null,1,"تعليما",2,"وتعلما",3,"وتقنيا","               على وفق خطة مرسومة",null,"بالقرآن نرقى وبه نرتقي","أنشأه: عبد الرحمن إمام"]
[null,null,"   تاريخ بداية الحلقة"," معلم الحلقة",null,null,null,null,null,null,"عدد أسطر الدرس",{"$f":"I9+I10+I11+I12+I13+I14+I15+I16+I17+I18+I19+I20+I21+I22+I23+I24+I25+I26+I27+I28","v":0},null,"عدد صفحات الدرس المحفوظ",{"$f":"L2/15","v":0},null,"عدد الأخطاء ",{"$f":"J9+J10+J11+J12+J13+J14+J15+J16+J17+J18+J19+J20+J21+J22+J23+J24+J25+J26+J27+J28","v":0},null,null,"المواظبة","السلوك",null,"      نسبة الفصل الأول ","المستوى الحالي","أبيات التحفة المحفوظة","معدل الدرجات"]
[null,null," 1441/12/18",null,null,null,null,null,null,null,"عدد أسطر بداية السورة",{"$f":"L9+L10+L11+L12+L13+L14+L15+L16+L17+L18+L19+L20+L21+L22+L23+L24+L25+L26+L27+L28","v":0},null,"عدد صفحات بداية السورة",{"$f":"L3/15","v":0},null,"عدد الأخطاء ",{"$f":"M9+M10+M11+M12+M13+M14+M15+M16+M17+M18+M19+M20+M21+M22+M23+M24+M25+M26+M27+M28","v":0},null,"  حضور مبكر",null,"عدد أيام التأخر",null,{"$f":"AA3","v":0},null,null,{"$f":"AA5/6","v":0}]
[null,null,"اسم الطالب",null,null,null,"اسم الحلقة",null,null,null,"عدد أسطر سورة قبل الدرس",{"$f":"O9+O10+O11+O12+O13+O14+O15+O16+O17+O18+O19+O20+O21+O22+O23+O24+O25+O26+O27+O28","v":0},null,"عدد صفحات سورة قبل الدرس",{"$f":"L4/15","v":0},null,"عدد الأخطاء ",{"$f":"P9+P10+P11+P12+P13+P14+P15+P16+P17+P18+P19+P20+P21+P22+P23+P24+P25+P26+P27+P28","v":0},null,{"$f":"COUNTIFS(G9:G28,\"ح\")","v":0},null,{"$f":"COUNTIF(G9:G28,\"ت\")","v":0},null,"نسبة الفصل الثاني","درجة أخر اختبار ","أبيات الجزرية المحفوظة","مجموع النقاط"]
[null,null,"رسالة خاصة بالطالب",null,null,null,"عبد الله بن مسعود رضي الله عنه",null,null,null,"عدد أسطر المراجعة",{"$f":"R9+R10+R11+R12+R13+R14+R15+R16+R17+R18+R19+R20+R21+R22+R23+R24+R25+R26+R27+R28","v":0},null,"عدد صفحات المراجعة",{"$f":"L5/15","v":0},null,"عدد الأخطاء ",{"$f":"S9+S10+S11+S12+S13+S14+S15+S16+S17+S18+S19+S20+S21+S22+S23+S24+S25+S26+S27+S28","v":0},null,"استئذان",null,"عدد  أيام الغياب",null,null,null,null,{"$f":"AA9+AA10+AA11+AA12+AA13+AA14+AA15+AA16+AA17+AA18+AA19+AA20+AA21+AA22+AA23+AA24+AA25+AA26+AA27+AA28","v":0}]
[null,null,"رسالة خاصة بالحلقة",null,null,null,"وقتها","بعد صلاة العشاء عن بعد",null,null,null,null,null,"المجموع الكلي لصفحات المراجعة",null,null,null,null,null,{"$f":"COUNTIF(G9:G28,\"م\")","v":0},null,{"$f":"COUNTIF(G9:G28,\"غ\")","v":0},null,"المعدل الكلي",null,"أبيات الشاطبية المحفوظة","النقاط المستبدلة"]
[null,null,null,"مدة تجربة البرنامج من تاريخ 1442/3/22هـ إلى نهاية الفصل الأول 1442/4/25 هــ",null,null,null,null,null,null,null,null,null,{"$f":"O5+O4+O3","v":0}]
[null,null,"الأيام ","التاريخ","المسار","المقررات","تحضير","الدرس","سطر","خطأ","بداية السورة","سطر","خطأ","سورة قبل الدرس","سطر","خطأ","المراجعة","سطر","خطأ","ملاحظات في التسميع","الدرس  10","التجويد 10","بداية السورة 10","سورة قبل الدرس 10","المراجعة 10","المشاركة+ التفاعل 10","مجموع النقاط اليومي","الملاحظات"]
[null,null,"الاحد","1442/3/29",null,null,null,null,null,null,null,null,null,null,null,null,null,null,null,null,null,null,null,null,null,null,{"$f":"Z9+Y9+X9+W9+U9+V9","v":0}]
[null,null,"الاثنين","1442/4/1",null,null,null,null,null,null,null,null,null,null,null,null,null,null,null,null,null,null,null,null,null,null,{"$f":"Z10+Y10+X10+W10+U10+V10","v":0}]
[null,null,"الثلاثاء","1442/4/2",null,null,null,null,null,null,null,null,null,null,null,null,null,null,null,null,null,null,null,null,null,null,0]
[null,null,"الاربعاء","1442/4/3",null,null,null,null,null,null,null,null,null,null,null,null,null,null,null,null,null,null,null,null,null,null,0]
[null,null,"الخميس","1442/4/4",null,null,null,null,null,null,null,null,null,null,null,null,null,null,null,null,null,null,null,null,null,null,0]
[null,null,"الاحد","1442/4/7",null,null,null,null,null,null,null,null,null,null,null,null,null,null,null,null,null,null,null,null,null,null,0]
[null,null,"الاثنين","1442/4/8",null,null,null,null,null,null,null,null,null,null,null,null,null,null,null,null,null,null,null,null,null,null,0]
[null,null,"الثلاثاء","1442/4/9",null,null,null,null,null,null,null,null,null,null,null,null,null,null,null,null,null,null,null,null,null,null,0]
[null,null,"الاربعاء","1442/4/10",null,null,null,null,null,null,null,null,null,null,null,null,null,null,null,null,null,null,null,null,null,null,0]
[null,null,"الخميس","1442/4/11",null,null,null,null,null,null,null,null,null,null,null,null,null,null,null,null,null,null,null,null,null,null,0]
[null,null,"الاحد","1442/4/14",null,null,null,null,null,null,null,null,null,null,null,null,null,null,null,null,null,null,null,null,null,null,0]
[null,null,"الاثنين","1442/4/15",null,null,null,null,null,null,null,null,null,null,null,null,null,null,null,null,null,null,null,null,null,null,0]
[null,null,"الثلاثاء","1442/4/16",null,null,null,null,null,null,null,null,null,null,null,null,null,null,null,null,null,null,null,null,null,null,0]
[null,null,"الاربعاء","1442/4/17",null,null,null,null,null,null,null,null,null,null,null,null,null,null,null,null,null,null,null,null,null,null,0]
[null,null,"الخميس","1442/4/18",null,null,null,null,null,null,null,null,null,null,null,null,null,null,null,null,null,null,null,null,null,null,0]
[null,null,"الاحد","1442/4/21",null,null,null,null,null,null,null,null,null,null,null,null,null,null,null,null,null,null,null,null,null,null,0]
[null,null,"الاثنين","1442/4/22",null,null,null,null,null,null,null,null,null,null,null,null,null,null,null,null,null,null,null,null,null,null,0]
[null,null,"الثلاثاء","1442/4/23",null,null,null,null,null,null,null,null,null,null,null,null,null,null,null,null,null,null,null,null,null,null,0]
[null,null,"الاربعاء","1442/4/24",null,null,null,null,null,null,null,null,null,null,null,null,null,null,null,null,null,null,null,null,null,null,0]
[null,null,"الخميس","1442/4/25",null,null,null,null,null,null,null,null,null,null,null,null,null,null,null,null,null,null,null,null,null,null,0]

{"sheet":"ورقة1 (4)","index":3,"n_rows":28,"n_cols":28,"rows_kept":28,"cut":false,"hidden":false,"merged":[[1,3,1,5],[2,3,2,5],[2,19,2,20],[2,21,2,22],[3,3,3,5],[3,6,3,7],[3,19,3,20],[3,21,3,22],[4,19,4,20],[4,21,4,22],[5,3,5,5],[5,7,5,9],[5,19,5,20],[5,21,5,22],[6,3,6,10],[29,3,29,4],[29,5,29,6],[4,3,4,5],[4,6,4,8]]}
[null,null,null,"برنامج المتابعة الالكترونية التجريبي لحلقة عبد الله بن مسعود",null,null,null,"    بمكة المكرمة",null,"التابعة لجمعية","تحفيظ القرآن الكريم",null,null,"                     نسعى لمواكبة العصر في تطوراته لخدمة كتاب الله عزوجل",null,null,null,1,"تعليما",2,"وتعلما",3,"وتقنيا","               على وفق خطة مرسومة",null,"بالقرآن نرقى وبه نرتقي","أنشأه: عبد الرحمن إمام"]
[null,null,"   تاريخ بداية الحلقة"," معلم الحلقة",null,null,null,null,null,null,"عدد أسطر الدرس",{"$f":"I9+I10+I11+I12+I13+I14+I15+I16+I17+I18+I19+I20+I21+I22+I23+I24+I25+I26+I27+I28","v":0},null,"عدد صفحات الدرس المحفوظ",{"$f":"L2/15","v":0},null,"عدد الأخطاء ",{"$f":"J9+J10+J11+J12+J13+J14+J15+J16+J17+J18+J19+J20+J21+J22+J23+J24+J25+J26+J27+J28","v":0},null,null,"المواظبة","السلوك",null,"      نسبة الفصل الأول ","المستوى الحالي","أبيات التحفة المحفوظة","معدل الدرجات"]
[null,null," 1441/12/18",null,null,null,null,null,null,null,"عدد أسطر بداية السورة",{"$f":"L9+L10+L11+L12+L13+L14+L15+L16+L17+L18+L19+L20+L21+L22+L23+L24+L25+L26+L27+L28","v":0},null,"عدد صفحات بداية السورة",{"$f":"L3/15","v":0},null,"عدد الأخطاء ",{"$f":"M9+M10+M11+M12+M13+M14+M15+M16+M17+M18+M19+M20+M21+M22+M23+M24+M25+M26+M27+M28","v":0},null,"  حضور مبكر",null,"عدد أيام التأخر",null,{"$f":"AA3","v":0},null,null,{"$f":"AA5/6","v":0}]
[null,null,"اسم الطالب",null,null,null,"اسم الحلقة",null,null,null,"عدد أسطر سورة قبل الدرس",{"$f":"O9+O10+O11+O12+O13+O14+O15+O16+O17+O18+O19+O20+O21+O22+O23+O24+O25+O26+O27+O28","v":0},null,"عدد صفحات سورة قبل الدرس",{"$f":"L4/15","v":0},null,"عدد الأخطاء ",{"$f":"P9+P10+P11+P12+P13+P14+P15+P16+P17+P18+P19+P20+P21+P22+P23+P24+P25+P26+P27+P28","v":0},null,{"$f":"COUNTIFS(G9:G28,\"ح\")","v":0},null,{"$f":"COUNTIF(G9:G28,\"ت\")","v":0},null,"نسبة الفصل الثاني","درجة أخر اختبار ","أبيات الجزرية المحفوظة","مجموع النقاط"]
[null,null,"رسالة خاصة بالطالب",null,null,null,"عبد الله بن مسعود رضي الله عنه",null,null,null,"عدد أسطر المراجعة",{"$f":"R9+R10+R11+R12+R13+R14+R15+R16+R17+R18+R19+R20+R21+R22+R23+R24+R25+R26+R27+R28","v":0},null,"عدد صفحات المراجعة",{"$f":"L5/15","v":0},null,"عدد الأخطاء ",{"$f":"S9+S10+S11+S12+S13+S14+S15+S16+S17+S18+S19+S20+S21+S22+S23+S24+S25+S26+S27+S28","v":0},null,"استئذان",null,"عدد  أيام الغياب",null,null,null,null,{"$f":"AA9+AA10+AA11+AA12+AA13+AA14+AA15+AA16+AA17+AA18+AA19+AA20+AA21+AA22+AA23+AA24+AA25+AA26+AA27+AA28","v":0}]
[null,null,"رسالة خاصة بالحلقة",null,null,null,"وقتها","بعد صلاة العشاء عن بعد",null,null,null,null,null,"المجموع الكلي لصفحات المراجعة",null,null,null,null,null,{"$f":"COUNTIF(G9:G28,\"م\")","v":0},null,{"$f":"COUNTIF(G9:G28,\"غ\")","v":0},null,"المعدل الكلي",null,"أبيات الشاطبية المحفوظة","النقاط المستبدلة"]
[null,null,null,"مدة تجربة البرنامج من تاريخ 1442/3/22هـ إلى نهاية الفصل الأول 1442/4/25 هــ",null,null,null,null,null,null,null,null,null,{"$f":"O5+O4+O3","v":0}]
[null,null,"الأيام ","التاريخ","المسار","المقررات","تحضير","الدرس","سطر","خطأ","بداية السورة","سطر","خطأ","سورة قبل الدرس","سطر","خطأ","المراجعة","سطر","خطأ","ملاحظات في التسميع","الدرس  10","التجويد 10","بداية السورة 10","سورة قبل الدرس 10","المراجعة 10","المشاركة+ التفاعل 10","مجموع النقاط اليومي","الملاحظات"]
[null,null,"الاحد","1442/3/29",null,null,null,null,null,null,null,null,null,null,null,null,null,null,null,null,null,null,null,null,null,null,{"$f":"Z9+Y9+X9+W9+U9+V9","v":0}]
[null,null,"الاثنين","1442/4/1",null,null,null,null,null,null,null,null,null,null,null,null,null,null,null,null,null,null,null,null,null,null,{"$f":"Z10+Y10+X10+W10+U10+V10","v":0}]
[null,null,"الثلاثاء","1442/4/2",null,null,null,null,null,null,null,null,null,null,null,null,null,null,null,null,null,null,null,null,null,null,0]
[null,null,"الاربعاء","1442/4/3",null,null,null,null,null,null,null,null,null,null,null,null,null,null,null,null,null,null,null,null,null,null,0]
[null,null,"الخميس","1442/4/4",null,null,null,null,null,null,null,null,null,null,null,null,null,null,null,null,null,null,null,null,null,null,0]
[null,null,"الاحد","1442/4/7",null,null,null,null,null,null,null,null,null,null,null,null,null,null,null,null,null,null,null,null,null,null,0]
[null,null,"الاثنين","1442/4/8",null,null,null,null,null,null,null,null,null,null,null,null,null,null,null,null,null,null,null,null,null,null,0]
[null,null,"الثلاثاء","1442/4/9",null,null,null,null,null,null,null,null,null,null,null,null,null,null,null,null,null,null,null,null,null,null,0]
[null,null,"الاربعاء","1442/4/10",null,null,null,null,null,null,null,null,null,null,null,null,null,null,null,null,null,null,null,null,null,null,0]
[null,null,"الخميس","1442/4/11",null,null,null,null,null,null,null,null,null,null,null,null,null,null,null,null,null,null,null,null,null,null,0]
[null,null,"الاحد","1442/4/14",null,null,null,null,null,null,null,null,null,null,null,null,null,null,null,null,null,null,null,null,null,null,0]
[null,null,"الاثنين","1442/4/15",null,null,null,null,null,null,null,null,null,null,null,null,null,null,null,null,null,null,null,null,null,null,0]
[null,null,"الثلاثاء","1442/4/16",null,null,null,null,null,null,null,null,null,null,null,null,null,null,null,null,null,null,null,null,null,null,0]
[null,null,"الاربعاء","1442/4/17",null,null,null,null,null,null,null,null,null,null,null,null,null,null,null,null,null,null,null,null,null,null,0]
[null,null,"الخميس","1442/4/18",null,null,null,null,null,null,null,null,null,null,null,null,null,null,null,null,null,null,null,null,null,null,0]
[null,null,"الاحد","1442/4/21",null,null,null,null,null,null,null,null,null,null,null,null,null,null,null,null,null,null,null,null,null,null,0]
[null,null,"الاثنين","1442/4/22",null,null,null,null,null,null,null,null,null,null,null,null,null,null,null,null,null,null,null,null,null,null,0]
[null,null,"الثلاثاء","1442/4/23",null,null,null,null,null,null,null,null,null,null,null,null,null,null,null,null,null,null,null,null,null,null,0]
[null,null,"الاربعاء","1442/4/24",null,null,null,null,null,null,null,null,null,null,null,null,null,null,null,null,null,null,null,null,null,null,0]
[null,null,"الخميس","1442/4/25",null,null,null,null,null,null,null,null,null,null,null,null,null,null,null,null,null,null,null,null,null,null,0]

{"sheet":"ورقة1 (5)","index":4,"n_rows":28,"n_cols":28,"rows_kept":28,"cut":false,"hidden":false,"merged":[[1,3,1,5],[2,3,2,5],[2,19,2,20],[2,21,2,22],[3,3,3,5],[3,6,3,7],[3,19,3,20],[3,21,3,22],[4,19,4,20],[4,21,4,22],[5,3,5,5],[5,7,5,9],[5,19,5,20],[5,21,5,22],[6,3,6,10],[29,3,29,4],[29,5,29,6],[4,3,4,5],[4,6,4,8]]}
[null,null,null,"برنامج المتابعة الالكترونية التجريبي لحلقة عبد الله بن مسعود",null,null,null,"    بمكة المكرمة",null,"التابعة لجمعية","تحفيظ القرآن الكريم",null,null,"                     نسعى لمواكبة العصر في تطوراته لخدمة كتاب الله عزوجل",null,null,null,1,"تعليما",2,"وتعلما",3,"وتقنيا","               على وفق خطة مرسومة",null,"بالقرآن نرقى وبه نرتقي","أنشأه: عبد الرحمن إمام"]
[null,null,"   تاريخ بداية الحلقة"," معلم الحلقة",null,null,null,null,null,null,"عدد أسطر الدرس",{"$f":"I9+I10+I11+I12+I13+I14+I15+I16+I17+I18+I19+I20+I21+I22+I23+I24+I25+I26+I27+I28","v":0},null,"عدد صفحات الدرس المحفوظ",{"$f":"L2/15","v":0},null,"عدد الأخطاء ",{"$f":"J9+J10+J11+J12+J13+J14+J15+J16+J17+J18+J19+J20+J21+J22+J23+J24+J25+J26+J27+J28","v":0},null,null,"المواظبة","السلوك",null,"      نسبة الفصل الأول ","المستوى الحالي","أبيات التحفة المحفوظة","معدل الدرجات"]
[null,null," 1441/12/18",null,null,null,null,null,null,null,"عدد أسطر بداية السورة",{"$f":"L9+L10+L11+L12+L13+L14+L15+L16+L17+L18+L19+L20+L21+L22+L23+L24+L25+L26+L27+L28","v":0},null,"عدد صفحات بداية السورة",{"$f":"L3/15","v":0},null,"عدد الأخطاء ",{"$f":"M9+M10+M11+M12+M13+M14+M15+M16+M17+M18+M19+M20+M21+M22+M23+M24+M25+M26+M27+M28","v":0},null,"  حضور مبكر",null,"عدد أيام التأخر",null,{"$f":"AA3","v":0},null,null,{"$f":"AA5/6","v":0}]
[null,null,"اسم الطالب",null,null,null,"اسم الحلقة",null,null,null,"عدد أسطر سورة قبل الدرس",{"$f":"O9+O10+O11+O12+O13+O14+O15+O16+O17+O18+O19+O20+O21+O22+O23+O24+O25+O26+O27+O28","v":0},null,"عدد صفحات سورة قبل الدرس",{"$f":"L4/15","v":0},null,"عدد الأخطاء ",{"$f":"P9+P10+P11+P12+P13+P14+P15+P16+P17+P18+P19+P20+P21+P22+P23+P24+P25+P26+P27+P28","v":0},null,{"$f":"COUNTIFS(G9:G28,\"ح\")","v":0},null,{"$f":"COUNTIF(G9:G28,\"ت\")","v":0},null,"نسبة الفصل الثاني","درجة أخر اختبار ","أبيات الجزرية المحفوظة","مجموع النقاط"]
[null,null,"رسالة خاصة بالطالب",null,null,null,"عبد الله بن مسعود رضي الله عنه",null,null,null,"عدد أسطر المراجعة",{"$f":"R9+R10+R11+R12+R13+R14+R15+R16+R17+R18+R19+R20+R21+R22+R23+R24+R25+R26+R27+R28","v":0},null,"عدد صفحات المراجعة",{"$f":"L5/15","v":0},null,"عدد الأخطاء ",{"$f":"S9+S10+S11+S12+S13+S14+S15+S16+S17+S18+S19+S20+S21+S22+S23+S24+S25+S26+S27+S28","v":0},null,"استئذان",null,"عدد  أيام الغياب",null,null,null,null,{"$f":"AA9+AA10+AA11+AA12+AA13+AA14+AA15+AA16+AA17+AA18+AA19+AA20+AA21+AA22+AA23+AA24+AA25+AA26+AA27+AA28","v":0}]
[null,null,"رسالة خاصة بالحلقة",null,null,null,"وقتها","بعد صلاة العشاء عن بعد",null,null,null,null,null,"المجموع الكلي لصفحات المراجعة",null,null,null,null,null,{"$f":"COUNTIF(G9:G28,\"م\")","v":0},null,{"$f":"COUNTIF(G9:G28,\"غ\")","v":0},null,"المعدل الكلي",null,"أبيات الشاطبية المحفوظة","النقاط المستبدلة"]
[null,null,null,"مدة تجربة البرنامج من تاريخ 1442/3/22هـ إلى نهاية الفصل الأول 1442/4/25 هــ",null,null,null,null,null,null,null,null,null,{"$f":"O5+O4+O3","v":0}]
[null,null,"الأيام ","التاريخ","المسار","المقررات","تحضير","الدرس","سطر","خطأ","بداية السورة","سطر","خطأ","سورة قبل الدرس","سطر","خطأ","المراجعة","سطر","خطأ","ملاحظات في التسميع","الدرس  10","التجويد 10","بداية السورة 10","سورة قبل الدرس 10","المراجعة 10","المشاركة+ التفاعل 10","مجموع النقاط اليومي","الملاحظات"]
[null,null,"الاحد","1442/3/29",null,null,null,null,null,null,null,null,null,null,null,null,null,null,null,null,null,null,null,null,null,null,{"$f":"Z9+Y9+X9+W9+U9+V9","v":0}]
[null,null,"الاثنين","1442/4/1",null,null,null,null,null,null,null,null,null,null,null,null,null,null,null,null,null,null,null,null,null,null,{"$f":"Z10+Y10+X10+W10+U10+V10","v":0}]
[null,null,"الثلاثاء","1442/4/2",null,null,null,null,null,null,null,null,null,null,null,null,null,null,null,null,null,null,null,null,null,null,0]
[null,null,"الاربعاء","1442/4/3",null,null,null,null,null,null,null,null,null,null,null,null,null,null,null,null,null,null,null,null,null,null,0]
[null,null,"الخميس","1442/4/4",null,null,null,null,null,null,null,null,null,null,null,null,null,null,null,null,null,null,null,null,null,null,0]
[null,null,"الاحد","1442/4/7",null,null,null,null,null,null,null,null,null,null,null,null,null,null,null,null,null,null,null,null,null,null,0]
[null,null,"الاثنين","1442/4/8",null,null,null,null,null,null,null,null,null,null,null,null,null,null,null,null,null,null,null,null,null,null,0]
[null,null,"الثلاثاء","1442/4/9",null,null,null,null,null,null,null,null,null,null,null,null,null,null,null,null,null,null,null,null,null,null,0]
[null,null,"الاربعاء","1442/4/10",null,null,null,null,null,null,null,null,null,null,null,null,null,null,null,null,null,null,null,null,null,null,0]
[null,null,"الخميس","1442/4/11",null,null,null,null,null,null,null,null,null,null,null,null,null,null,null,null,null,null,null,null,null,null,0]
[null,null,"الاحد","1442/4/14",null,null,null,null,null,null,null,null,null,null,null,null,null,null,null,null,null,null,null,null,null,null,0]
[null,null,"الاثنين","1442/4/15",null,null,null,null,null,null,null,null,null,null,null,null,null,null,null,null,null,null,null,null,null,null,0]
[null,null,"الثلاثاء","1442/4/16",null,null,null,null,null,null,null,null,null,null,null,null,null,null,null,null,null,null,null,null,null,null,0]
[null,null,"الاربعاء","1442/4/17",null,null,null,null,null,null,null,null,null,null,null,null,null,null,null,null,null,null,null,null,null,null,0]
[null,null,"الخميس","1442/4/18",null,null,null,null,null,null,null,null,null,null,null,null,null,null,null,null,null,null,null,null,null,null,0]
[null,null,"الاحد","1442/4/21",null,null,null,null,null,null,null,null,null,null,null,null,null,null,null,null,null,null,null,null,null,null,0]
[null,null,"الاثنين","1442/4/22",null,null,null,null,null,null,null,null,null,null,null,null,null,null,null,null,null,null,null,null,null,null,0]
[null,null,"الثلاثاء","1442/4/23",null,null,null,null,null,null,null,null,null,null,null,null,null,null,null,null,null,null,null,null,null,null,0]
[null,null,"الاربعاء","1442/4/24",null,null,null,null,null,null,null,null,null,null,null,null,null,null,null,null,null,null,null,null,null,null,0]
[null,null,"الخميس","1442/4/25",null,null,null,null,null,null,null,null,null,null,null,null,null,null,null,null,null,null,null,null,null,null,0]

{"sheet":"ورقة1 (6)","index":5,"n_rows":28,"n_cols":28,"rows_kept":28,"cut":false,"hidden":false,"merged":[[1,3,1,5],[2,3,2,5],[2,19,2,20],[2,21,2,22],[3,3,3,5],[3,6,3,7],[3,19,3,20],[3,21,3,22],[4,19,4,20],[4,21,4,22],[5,3,5,5],[5,7,5,9],[5,19,5,20],[5,21,5,22],[6,3,6,10],[29,3,29,4],[29,5,29,6],[4,3,4,5],[4,6,4,8]]}
[null,null,null,"برنامج المتابعة الالكترونية التجريبي لحلقة عبد الله بن مسعود",null,null,null,"    بمكة المكرمة",null,"التابعة لجمعية","تحفيظ القرآن الكريم",null,null,"                     نسعى لمواكبة العصر في تطوراته لخدمة كتاب الله عزوجل",null,null,null,1,"تعليما",2,"وتعلما",3,"وتقنيا","               على وفق خطة مرسومة",null,"بالقرآن نرقى وبه نرتقي","أنشأه: عبد الرحمن إمام"]
[null,null,"   تاريخ بداية الحلقة"," معلم الحلقة",null,null,null,null,null,null,"عدد أسطر الدرس",{"$f":"I9+I10+I11+I12+I13+I14+I15+I16+I17+I18+I19+I20+I21+I22+I23+I24+I25+I26+I27+I28","v":0},null,"عدد صفحات الدرس المحفوظ",{"$f":"L2/15","v":0},null,"عدد الأخطاء ",{"$f":"J9+J10+J11+J12+J13+J14+J15+J16+J17+J18+J19+J20+J21+J22+J23+J24+J25+J26+J27+J28","v":0},null,null,"المواظبة","السلوك",null,"      نسبة الفصل الأول ","المستوى الحالي","أبيات التحفة المحفوظة","معدل الدرجات"]
[null,null," 1441/12/18",null,null,null,null,null,null,null,"عدد أسطر بداية السورة",{"$f":"L9+L10+L11+L12+L13+L14+L15+L16+L17+L18+L19+L20+L21+L22+L23+L24+L25+L26+L27+L28","v":0},null,"عدد صفحات بداية السورة",{"$f":"L3/15","v":0},null,"عدد الأخطاء ",{"$f":"M9+M10+M11+M12+M13+M14+M15+M16+M17+M18+M19+M20+M21+M22+M23+M24+M25+M26+M27+M28","v":0},null,"  حضور مبكر",null,"عدد أيام التأخر",null,{"$f":"AA3","v":0},null,null,{"$f":"AA5/6","v":0}]
[null,null,"اسم الطالب",null,null,null,"اسم الحلقة",null,null,null,"عدد أسطر سورة قبل الدرس",{"$f":"O9+O10+O11+O12+O13+O14+O15+O16+O17+O18+O19+O20+O21+O22+O23+O24+O25+O26+O27+O28","v":0},null,"عدد صفحات سورة قبل الدرس",{"$f":"L4/15","v":0},null,"عدد الأخطاء ",{"$f":"P9+P10+P11+P12+P13+P14+P15+P16+P17+P18+P19+P20+P21+P22+P23+P24+P25+P26+P27+P28","v":0},null,{"$f":"COUNTIFS(G9:G28,\"ح\")","v":0},null,{"$f":"COUNTIF(G9:G28,\"ت\")","v":0},null,"نسبة الفصل الثاني","درجة أخر اختبار ","أبيات الجزرية المحفوظة","مجموع النقاط"]
[null,null,"رسالة خاصة بالطالب",null,null,null,"عبد الله بن مسعود رضي الله عنه",null,null,null,"عدد أسطر المراجعة",{"$f":"R9+R10+R11+R12+R13+R14+R15+R16+R17+R18+R19+R20+R21+R22+R23+R24+R25+R26+R27+R28","v":0},null,"عدد صفحات المراجعة",{"$f":"L5/15","v":0},null,"عدد الأخطاء ",{"$f":"S9+S10+S11+S12+S13+S14+S15+S16+S17+S18+S19+S20+S21+S22+S23+S24+S25+S26+S27+S28","v":0},null,"استئذان",null,"عدد  أيام الغياب",null,null,null,null,{"$f":"AA9+AA10+AA11+AA12+AA13+AA14+AA15+AA16+AA17+AA18+AA19+AA20+AA21+AA22+AA23+AA24+AA25+AA26+AA27+AA28","v":0}]
[null,null,"رسالة خاصة بالحلقة",null,null,null,"وقتها","بعد صلاة العشاء عن بعد",null,null,null,null,null,"المجموع الكلي لصفحات المراجعة",null,null,null,null,null,{"$f":"COUNTIF(G9:G28,\"م\")","v":0},null,{"$f":"COUNTIF(G9:G28,\"غ\")","v":0},null,"المعدل الكلي",null,"أبيات الشاطبية المحفوظة","النقاط المستبدلة"]
[null,null,null,"مدة تجربة البرنامج من تاريخ 1442/3/22هـ إلى نهاية الفصل الأول 1442/4/25 هــ",null,null,null,null,null,null,null,null,null,{"$f":"O5+O4+O3","v":0}]
[null,null,"الأيام ","التاريخ","المسار","المقررات","تحضير","الدرس","سطر","خطأ","بداية السورة","سطر","خطأ","سورة قبل الدرس","سطر","خطأ","المراجعة","سطر","خطأ","ملاحظات في التسميع","الدرس  10","التجويد 10","بداية السورة 10","سورة قبل الدرس 10","المراجعة 10","المشاركة+ التفاعل 10","مجموع النقاط اليومي","الملاحظات"]
[null,null,"الاحد","1442/3/29",null,null,null,null,null,null,null,null,null,null,null,null,null,null,null,null,null,null,null,null,null,null,{"$f":"Z9+Y9+X9+W9+U9+V9","v":0}]
[null,null,"الاثنين","1442/4/1",null,null,null,null,null,null,null,null,null,null,null,null,null,null,null,null,null,null,null,null,null,null,{"$f":"Z10+Y10+X10+W10+U10+V10","v":0}]
[null,null,"الثلاثاء","1442/4/2",null,null,null,null,null,null,null,null,null,null,null,null,null,null,null,null,null,null,null,null,null,null,0]
[null,null,"الاربعاء","1442/4/3",null,null,null,null,null,null,null,null,null,null,null,null,null,null,null,null,null,null,null,null,null,null,0]
[null,null,"الخميس","1442/4/4",null,null,null,null,null,null,null,null,null,null,null,null,null,null,null,null,null,null,null,null,null,null,0]
[null,null,"الاحد","1442/4/7",null,null,null,null,null,null,null,null,null,null,null,null,null,null,null,null,null,null,null,null,null,null,0]
[null,null,"الاثنين","1442/4/8",null,null,null,null,null,null,null,null,null,null,null,null,null,null,null,null,null,null,null,null,null,null,0]
[null,null,"الثلاثاء","1442/4/9",null,null,null,null,null,null,null,null,null,null,null,null,null,null,null,null,null,null,null,null,null,null,0]
[null,null,"الاربعاء","1442/4/10",null,null,null,null,null,null,null,null,null,null,null,null,null,null,null,null,null,null,null,null,null,null,0]
[null,null,"الخميس","1442/4/11",null,null,null,null,null,null,null,null,null,null,null,null,null,null,null,null,null,null,null,null,null,null,0]
[null,null,"الاحد","1442/4/14",null,null,null,null,null,null,null,null,null,null,null,null,null,null,null,null,null,null,null,null,null,null,0]
[null,null,"الاثنين","1442/4/15",null,null,null,null,null,null,null,null,null,null,null,null,null,null,null,null,null,null,null,null,null,null,0]
[null,null,"الثلاثاء","1442/4/16",null,null,null,null,null,null,null,null,null,null,null,null,null,null,null,null,null,null,null,null,null,null,0]
[null,null,"الاربعاء","1442/4/17",null,null,null,null,null,null,null,null,null,null,null,null,null,null,null,null,null,null,null,null,null,null,0]
[null,null,"الخميس","1442/4/18",null,null,null,null,null,null,null,null,null,null,null,null,null,null,null,null,null,null,null,null,null,null,0]
[null,null,"الاحد","1442/4/21",null,null,null,null,null,null,null,null,null,null,null,null,null,null,null,null,null,null,null,null,null,null,0]
[null,null,"الاثنين","1442/4/22",null,null,null,null,null,null,null,null,null,null,null,null,null,null,null,null,null,null,null,null,null,null,0]
[null,null,"الثلاثاء","1442/4/23",null,null,null,null,null,null,null,null,null,null,null,null,null,null,null,null,null,null,null,null,null,null,0]
[null,null,"الاربعاء","1442/4/24",null,null,null,null,null,null,null,null,null,null,null,null,null,null,null,null,null,null,null,null,null,null,0]
[null,null,"الخميس","1442/4/25",null,null,null,null,null,null,null,null,null,null,null,null,null,null,null,null,null,null,null,null,null,null,0]

{"sheet":"ورقة1 (7)","index":6,"n_rows":28,"n_cols":28,"rows_kept":28,"cut":false,"hidden":false,"merged":[[1,3,1,5],[2,3,2,5],[2,19,2,20],[2,21,2,22],[3,3,3,5],[3,6,3,7],[3,19,3,20],[3,21,3,22],[4,19,4,20],[4,21,4,22],[5,3,5,5],[5,7,5,9],[5,19,5,20],[5,21,5,22],[6,3,6,10],[29,3,29,4],[29,5,29,6],[4,3,4,5],[4,6,4,8]]}
[null,null,null,"برنامج المتابعة الالكترونية التجريبي لحلقة عبد الله بن مسعود",null,null,null,"    بمكة المكرمة",null,"التابعة لجمعية","تحفيظ القرآن الكريم",null,null,"                     نسعى لمواكبة العصر في تطوراته لخدمة كتاب الله عزوجل",null,null,null,1,"تعليما",2,"وتعلما",3,"وتقنيا","               على وفق خطة مرسومة",null,"بالقرآن نرقى وبه نرتقي","أنشأه: عبد الرحمن إمام"]
[null,null,"   تاريخ بداية الحلقة"," معلم الحلقة",null,null,null,null,null,null,"عدد أسطر الدرس",{"$f":"I9+I10+I11+I12+I13+I14+I15+I16+I17+I18+I19+I20+I21+I22+I23+I24+I25+I26+I27+I28","v":0},null,"عدد صفحات الدرس المحفوظ",{"$f":"L2/15","v":0},null,"عدد الأخطاء ",{"$f":"J9+J10+J11+J12+J13+J14+J15+J16+J17+J18+J19+J20+J21+J22+J23+J24+J25+J26+J27+J28","v":0},null,null,"المواظبة","السلوك",null,"      نسبة الفصل الأول ","المستوى الحالي","أبيات التحفة المحفوظة","معدل الدرجات"]
[null,null," 1441/12/18",null,null,null,null,null,null,null,"عدد أسطر بداية السورة",{"$f":"L9+L10+L11+L12+L13+L14+L15+L16+L17+L18+L19+L20+L21+L22+L23+L24+L25+L26+L27+L28","v":0},null,"عدد صفحات بداية السورة",{"$f":"L3/15","v":0},null,"عدد الأخطاء ",{"$f":"M9+M10+M11+M12+M13+M14+M15+M16+M17+M18+M19+M20+M21+M22+M23+M24+M25+M26+M27+M28","v":0},null,"  حضور مبكر",null,"عدد أيام التأخر",null,{"$f":"AA3","v":0},null,null,{"$f":"AA5/6","v":0}]
[null,null,"اسم الطالب",null,null,null,"اسم الحلقة",null,null,null,"عدد أسطر سورة قبل الدرس",{"$f":"O9+O10+O11+O12+O13+O14+O15+O16+O17+O18+O19+O20+O21+O22+O23+O24+O25+O26+O27+O28","v":0},null,"عدد صفحات سورة قبل الدرس",{"$f":"L4/15","v":0},null,"عدد الأخطاء ",{"$f":"P9+P10+P11+P12+P13+P14+P15+P16+P17+P18+P19+P20+P21+P22+P23+P24+P25+P26+P27+P28","v":0},null,{"$f":"COUNTIFS(G9:G28,\"ح\")","v":0},null,{"$f":"COUNTIF(G9:G28,\"ت\")","v":0},null,"نسبة الفصل الثاني","درجة أخر اختبار ","أبيات الجزرية المحفوظة","مجموع النقاط"]
[null,null,"رسالة خاصة بالطالب",null,null,null,"عبد الله بن مسعود رضي الله عنه",null,null,null,"عدد أسطر المراجعة",{"$f":"R9+R10+R11+R12+R13+R14+R15+R16+R17+R18+R19+R20+R21+R22+R23+R24+R25+R26+R27+R28","v":0},null,"عدد صفحات المراجعة",{"$f":"L5/15","v":0},null,"عدد الأخطاء ",{"$f":"S9+S10+S11+S12+S13+S14+S15+S16+S17+S18+S19+S20+S21+S22+S23+S24+S25+S26+S27+S28","v":0},null,"استئذان",null,"عدد  أيام الغياب",null,null,null,null,{"$f":"AA9+AA10+AA11+AA12+AA13+AA14+AA15+AA16+AA17+AA18+AA19+AA20+AA21+AA22+AA23+AA24+AA25+AA26+AA27+AA28","v":0}]
[null,null,"رسالة خاصة بالحلقة",null,null,null,"وقتها","بعد صلاة العشاء عن بعد",null,null,null,null,null,"المجموع الكلي لصفحات المراجعة",null,null,null,null,null,{"$f":"COUNTIF(G9:G28,\"م\")","v":0},null,{"$f":"COUNTIF(G9:G28,\"غ\")","v":0},null,"المعدل الكلي",null,"أبيات الشاطبية المحفوظة","النقاط المستبدلة"]
[null,null,null,"مدة تجربة البرنامج من تاريخ 1442/3/22هـ إلى نهاية الفصل الأول 1442/4/25 هــ",null,null,null,null,null,null,null,null,null,{"$f":"O5+O4+O3","v":0}]
[null,null,"الأيام ","التاريخ","المسار","المقررات","تحضير","الدرس","سطر","خطأ","بداية السورة","سطر","خطأ","سورة قبل الدرس","سطر","خطأ","المراجعة","سطر","خطأ","ملاحظات في التسميع","الدرس  10","التجويد 10","بداية السورة 10","سورة قبل الدرس 10","المراجعة 10","المشاركة+ التفاعل 10","مجموع النقاط اليومي","الملاحظات"]
[null,null,"الاحد","1442/3/29",null,null,null,null,null,null,null,null,null,null,null,null,null,null,null,null,null,null,null,null,null,null,{"$f":"Z9+Y9+X9+W9+U9+V9","v":0}]
[null,null,"الاثنين","1442/4/1",null,null,null,null,null,null,null,null,null,null,null,null,null,null,null,null,null,null,null,null,null,null,{"$f":"Z10+Y10+X10+W10+U10+V10","v":0}]
[null,null,"الثلاثاء","1442/4/2",null,null,null,null,null,null,null,null,null,null,null,null,null,null,null,null,null,null,null,null,null,null,0]
[null,null,"الاربعاء","1442/4/3",null,null,null,null,null,null,null,null,null,null,null,null,null,null,null,null,null,null,null,null,null,null,0]
[null,null,"الخميس","1442/4/4",null,null,null,null,null,null,null,null,null,null,null,null,null,null,null,null,null,null,null,null,null,null,0]
[null,null,"الاحد","1442/4/7",null,null,null,null,null,null,null,null,null,null,null,null,null,null,null,null,null,null,null,null,null,null,0]
[null,null,"الاثنين","1442/4/8",null,null,null,null,null,null,null,null,null,null,null,null,null,null,null,null,null,null,null,null,null,null,0]
[null,null,"الثلاثاء","1442/4/9",null,null,null,null,null,null,null,null,null,null,null,null,null,null,null,null,null,null,null,null,null,null,0]
[null,null,"الاربعاء","1442/4/10",null,null,null,null,null,null,null,null,null,null,null,null,null,null,null,null,null,null,null,null,null,null,0]
[null,null,"الخميس","1442/4/11",null,null,null,null,null,null,null,null,null,null,null,null,null,null,null,null,null,null,null,null,null,null,0]
[null,null,"الاحد","1442/4/14",null,null,null,null,null,null,null,null,null,null,null,null,null,null,null,null,null,null,null,null,null,null,0]
[null,null,"الاثنين","1442/4/15",null,null,null,null,null,null,null,null,null,null,null,null,null,null,null,null,null,null,null,null,null,null,0]
[null,null,"الثلاثاء","1442/4/16",null,null,null,null,null,null,null,null,null,null,null,null,null,null,null,null,null,null,null,null,null,null,0]
[null,null,"الاربعاء","1442/4/17",null,null,null,null,null,null,null,null,null,null,null,null,null,null,null,null,null,null,null,null,null,null,0]
[null,null,"الخميس","1442/4/18",null,null,null,null,null,null,null,null,null,null,null,null,null,null,null,null,null,null,null,null,null,null,0]
[null,null,"الاحد","1442/4/21",null,null,null,null,null,null,null,null,null,null,null,null,null,null,null,null,null,null,null,null,null,null,0]
[null,null,"الاثنين","1442/4/22",null,null,null,null,null,null,null,null,null,null,null,null,null,null,null,null,null,null,null,null,null,null,0]
[null,null,"الثلاثاء","1442/4/23",null,null,null,null,null,null,null,null,null,null,null,null,null,null,null,null,null,null,null,null,null,null,0]
[null,null,"الاربعاء","1442/4/24",null,null,null,null,null,null,null,null,null,null,null,null,null,null,null,null,null,null,null,null,null,null,0]
[null,null,"الخميس","1442/4/25",null,null,null,null,null,null,null,null,null,null,null,null,null,null,null,null,null,null,null,null,null,null,0]

{"sheet":"ورقة1 (8)","index":7,"n_rows":28,"n_cols":28,"rows_kept":28,"cut":false,"hidden":false,"merged":[[1,3,1,5],[2,3,2,5],[2,19,2,20],[2,21,2,22],[3,3,3,5],[3,6,3,7],[3,19,3,20],[3,21,3,22],[4,19,4,20],[4,21,4,22],[5,3,5,5],[5,7,5,9],[5,19,5,20],[5,21,5,22],[6,3,6,10],[29,3,29,4],[29,5,29,6],[4,3,4,5],[4,6,4,8]]}
[null,null,null,"برنامج المتابعة الالكترونية التجريبي لحلقة عبد الله بن مسعود",null,null,null,"    بمكة المكرمة",null,"التابعة لجمعية","تحفيظ القرآن الكريم",null,null,"                     نسعى لمواكبة العصر في تطوراته لخدمة كتاب الله عزوجل",null,null,null,1,"تعليما",2,"وتعلما",3,"وتقنيا","               على وفق خطة مرسومة",null,"بالقرآن نرقى وبه نرتقي","أنشأه: عبد الرحمن إمام"]
[null,null,"   تاريخ بداية الحلقة"," معلم الحلقة",null,null,null,null,null,null,"عدد أسطر الدرس",{"$f":"I9+I10+I11+I12+I13+I14+I15+I16+I17+I18+I19+I20+I21+I22+I23+I24+I25+I26+I27+I28","v":0},null,"عدد صفحات الدرس المحفوظ",{"$f":"L2/15","v":0},null,"عدد الأخطاء ",{"$f":"J9+J10+J11+J12+J13+J14+J15+J16+J17+J18+J19+J20+J21+J22+J23+J24+J25+J26+J27+J28","v":0},null,null,"المواظبة","السلوك",null,"      نسبة الفصل الأول ","المستوى الحالي","أبيات التحفة المحفوظة","معدل الدرجات"]
[null,null," 1441/12/18",null,null,null,null,null,null,null,"عدد أسطر بداية السورة",{"$f":"L9+L10+L11+L12+L13+L14+L15+L16+L17+L18+L19+L20+L21+L22+L23+L24+L25+L26+L27+L28","v":0},null,"عدد صفحات بداية السورة",{"$f":"L3/15","v":0},null,"عدد الأخطاء ",{"$f":"M9+M10+M11+M12+M13+M14+M15+M16+M17+M18+M19+M20+M21+M22+M23+M24+M25+M26+M27+M28","v":0},null,"  حضور مبكر",null,"عدد أيام التأخر",null,{"$f":"AA3","v":0},null,null,{"$f":"AA5/6","v":0}]
[null,null,"اسم الطالب",null,null,null,"اسم الحلقة",null,null,null,"عدد أسطر سورة قبل الدرس",{"$f":"O9+O10+O11+O12+O13+O14+O15+O16+O17+O18+O19+O20+O21+O22+O23+O24+O25+O26+O27+O28","v":0},null,"عدد صفحات سورة قبل الدرس",{"$f":"L4/15","v":0},null,"عدد الأخطاء ",{"$f":"P9+P10+P11+P12+P13+P14+P15+P16+P17+P18+P19+P20+P21+P22+P23+P24+P25+P26+P27+P28","v":0},null,{"$f":"COUNTIFS(G9:G28,\"ح\")","v":0},null,{"$f":"COUNTIF(G9:G28,\"ت\")","v":0},null,"نسبة الفصل الثاني","درجة أخر اختبار ","أبيات الجزرية المحفوظة","مجموع النقاط"]
[null,null,"رسالة خاصة بالطالب",null,null,null,"عبد الله بن مسعود رضي الله عنه",null,null,null,"عدد أسطر المراجعة",{"$f":"R9+R10+R11+R12+R13+R14+R15+R16+R17+R18+R19+R20+R21+R22+R23+R24+R25+R26+R27+R28","v":0},null,"عدد صفحات المراجعة",{"$f":"L5/15","v":0},null,"عدد الأخطاء ",{"$f":"S9+S10+S11+S12+S13+S14+S15+S16+S17+S18+S19+S20+S21+S22+S23+S24+S25+S26+S27+S28","v":0},null,"استئذان",null,"عدد  أيام الغياب",null,null,null,null,{"$f":"AA9+AA10+AA11+AA12+AA13+AA14+AA15+AA16+AA17+AA18+AA19+AA20+AA21+AA22+AA23+AA24+AA25+AA26+AA27+AA28","v":0}]
[null,null,"رسالة خاصة بالحلقة",null,null,null,"وقتها","بعد صلاة العشاء عن بعد",null,null,null,null,null,"المجموع الكلي لصفحات المراجعة",null,null,null,null,null,{"$f":"COUNTIF(G9:G28,\"م\")","v":0},null,{"$f":"COUNTIF(G9:G28,\"غ\")","v":0},null,"المعدل الكلي",null,"أبيات الشاطبية المحفوظة","النقاط المستبدلة"]
[null,null,null,"مدة تجربة البرنامج من تاريخ 1442/3/22هـ إلى نهاية الفصل الأول 1442/4/25 هــ",null,null,null,null,null,null,null,null,null,{"$f":"O5+O4+O3","v":0}]
[null,null,"الأيام ","التاريخ","المسار","المقررات","تحضير","الدرس","سطر","خطأ","بداية السورة","سطر","خطأ","سورة قبل الدرس","سطر","خطأ","المراجعة","سطر","خطأ","ملاحظات في التسميع","الدرس  10","التجويد 10","بداية السورة 10","سورة قبل الدرس 10","المراجعة 10","المشاركة+ التفاعل 10","مجموع النقاط اليومي","الملاحظات"]
[null,null,"الاحد","1442/3/29",null,null,null,null,null,null,null,null,null,null,null,null,null,null,null,null,null,null,null,null,null,null,{"$f":"Z9+Y9+X9+W9+U9+V9","v":0}]
[null,null,"الاثنين","1442/4/1",null,null,null,null,null,null,null,null,null,null,null,null,null,null,null,null,null,null,null,null,null,null,{"$f":"Z10+Y10+X10+W10+U10+V10","v":0}]
[null,null,"الثلاثاء","1442/4/2",null,null,null,null,null,null,null,null,null,null,null,null,null,null,null,null,null,null,null,null,null,null,0]
[null,null,"الاربعاء","1442/4/3",null,null,null,null,null,null,null,null,null,null,null,null,null,null,null,null,null,null,null,null,null,null,0]
[null,null,"الخميس","1442/4/4",null,null,null,null,null,null,null,null,null,null,null,null,null,null,null,null,null,null,null,null,null,null,0]
[null,null,"الاحد","1442/4/7",null,null,null,null,null,null,null,null,null,null,null,null,null,null,null,null,null,null,null,null,null,null,0]
[null,null,"الاثنين","1442/4/8",null,null,null,null,null,null,null,null,null,null,null,null,null,null,null,null,null,null,null,null,null,null,0]
[null,null,"الثلاثاء","1442/4/9",null,null,null,null,null,null,null,null,null,null,null,null,null,null,null,null,null,null,null,null,null,null,0]
[null,null,"الاربعاء","1442/4/10",null,null,null,null,null,null,null,null,null,null,null,null,null,null,null,null,null,null,null,null,null,null,0]
[null,null,"الخميس","1442/4/11",null,null,null,null,null,null,null,null,null,null,null,null,null,null,null,null,null,null,null,null,null,null,0]
[null,null,"الاحد","1442/4/14",null,null,null,null,null,null,null,null,null,null,null,null,null,null,null,null,null,null,null,null,null,null,0]
[null,null,"الاثنين","1442/4/15",null,null,null,null,null,null,null,null,null,null,null,null,null,null,null,null,null,null,null,null,null,null,0]
[null,null,"الثلاثاء","1442/4/16",null,null,null,null,null,null,null,null,null,null,null,null,null,null,null,null,null,null,null,null,null,null,0]
[null,null,"الاربعاء","1442/4/17",null,null,null,null,null,null,null,null,null,null,null,null,null,null,null,null,null,null,null,null,null,null,0]
[null,null,"الخميس","1442/4/18",null,null,null,null,null,null,null,null,null,null,null,null,null,null,null,null,null,null,null,null,null,null,0]
[null,null,"الاحد","1442/4/21",null,null,null,null,null,null,null,null,null,null,null,null,null,null,null,null,null,null,null,null,null,null,0]
[null,null,"الاثنين","1442/4/22",null,null,null,null,null,null,null,null,null,null,null,null,null,null,null,null,null,null,null,null,null,null,0]
[null,null,"الثلاثاء","1442/4/23",null,null,null,null,null,null,null,null,null,null,null,null,null,null,null,null,null,null,null,null,null,null,0]
[null,null,"الاربعاء","1442/4/24",null,null,null,null,null,null,null,null,null,null,null,null,null,null,null,null,null,null,null,null,null,null,0]
[null,null,"الخميس","1442/4/25",null,null,null,null,null,null,null,null,null,null,null,null,null,null,null,null,null,null,null,null,null,null,0]

{"sheet":"ورقة1 (9)","index":8,"n_rows":28,"n_cols":28,"rows_kept":28,"cut":false,"hidden":false,"merged":[[1,3,1,5],[2,3,2,5],[2,19,2,20],[2,21,2,22],[3,3,3,5],[3,6,3,7],[3,19,3,20],[3,21,3,22],[4,19,4,20],[4,21,4,22],[5,3,5,5],[5,7,5,9],[5,19,5,20],[5,21,5,22],[6,3,6,10],[29,3,29,4],[29,5,29,6],[4,3,4,5],[4,6,4,8]]}
[null,null,null,"برنامج المتابعة الالكترونية التجريبي لحلقة عبد الله بن مسعود",null,null,null,"    بمكة المكرمة",null,"التابعة لجمعية","تحفيظ القرآن الكريم",null,null,"                     نسعى لمواكبة العصر في تطوراته لخدمة كتاب الله عزوجل",null,null,null,1,"تعليما",2,"وتعلما",3,"وتقنيا","               على وفق خطة مرسومة",null,"بالقرآن نرقى وبه نرتقي","أنشأه: عبد الرحمن إمام"]
[null,null,"   تاريخ بداية الحلقة"," معلم الحلقة",null,null,null,null,null,null,"عدد أسطر الدرس",{"$f":"I9+I10+I11+I12+I13+I14+I15+I16+I17+I18+I19+I20+I21+I22+I23+I24+I25+I26+I27+I28","v":0},null,"عدد صفحات الدرس المحفوظ",{"$f":"L2/15","v":0},null,"عدد الأخطاء ",{"$f":"J9+J10+J11+J12+J13+J14+J15+J16+J17+J18+J19+J20+J21+J22+J23+J24+J25+J26+J27+J28","v":0},null,null,"المواظبة","السلوك",null,"      نسبة الفصل الأول ","المستوى الحالي","أبيات التحفة المحفوظة","معدل الدرجات"]
[null,null," 1441/12/18",null,null,null,null,null,null,null,"عدد أسطر بداية السورة",{"$f":"L9+L10+L11+L12+L13+L14+L15+L16+L17+L18+L19+L20+L21+L22+L23+L24+L25+L26+L27+L28","v":0},null,"عدد صفحات بداية السورة",{"$f":"L3/15","v":0},null,"عدد الأخطاء ",{"$f":"M9+M10+M11+M12+M13+M14+M15+M16+M17+M18+M19+M20+M21+M22+M23+M24+M25+M26+M27+M28","v":0},null,"  حضور مبكر",null,"عدد أيام التأخر",null,{"$f":"AA3","v":0},null,null,{"$f":"AA5/6","v":0}]
[null,null,"اسم الطالب",null,null,null,"اسم الحلقة",null,null,null,"عدد أسطر سورة قبل الدرس",{"$f":"O9+O10+O11+O12+O13+O14+O15+O16+O17+O18+O19+O20+O21+O22+O23+O24+O25+O26+O27+O28","v":0},null,"عدد صفحات سورة قبل الدرس",{"$f":"L4/15","v":0},null,"عدد الأخطاء ",{"$f":"P9+P10+P11+P12+P13+P14+P15+P16+P17+P18+P19+P20+P21+P22+P23+P24+P25+P26+P27+P28","v":0},null,{"$f":"COUNTIFS(G9:G28,\"ح\")","v":0},null,{"$f":"COUNTIF(G9:G28,\"ت\")","v":0},null,"نسبة الفصل الثاني","درجة أخر اختبار ","أبيات الجزرية المحفوظة","مجموع النقاط"]
[null,null,"رسالة خاصة بالطالب",null,null,null,"عبد الله بن مسعود رضي الله عنه",null,null,null,"عدد أسطر المراجعة",{"$f":"R9+R10+R11+R12+R13+R14+R15+R16+R17+R18+R19+R20+R21+R22+R23+R24+R25+R26+R27+R28","v":0},null,"عدد صفحات المراجعة",{"$f":"L5/15","v":0},null,"عدد الأخطاء ",{"$f":"S9+S10+S11+S12+S13+S14+S15+S16+S17+S18+S19+S20+S21+S22+S23+S24+S25+S26+S27+S28","v":0},null,"استئذان",null,"عدد  أيام الغياب",null,null,null,null,{"$f":"AA9+AA10+AA11+AA12+AA13+AA14+AA15+AA16+AA17+AA18+AA19+AA20+AA21+AA22+AA23+AA24+AA25+AA26+AA27+AA28","v":0}]
[null,null,"رسالة خاصة بالحلقة",null,null,null,"وقتها","بعد صلاة العشاء عن بعد",null,null,null,null,null,"المجموع الكلي لصفحات المراجعة",null,null,null,null,null,{"$f":"COUNTIF(G9:G28,\"م\")","v":0},null,{"$f":"COUNTIF(G9:G28,\"غ\")","v":0},null,"المعدل الكلي",null,"أبيات الشاطبية المحفوظة","النقاط المستبدلة"]
[null,null,null,"مدة تجربة البرنامج من تاريخ 1442/3/22هـ إلى نهاية الفصل الأول 1442/4/25 هــ",null,null,null,null,null,null,null,null,null,{"$f":"O5+O4+O3","v":0}]
[null,null,"الأيام ","التاريخ","المسار","المقررات","تحضير","الدرس","سطر","خطأ","بداية السورة","سطر","خطأ","سورة قبل الدرس","سطر","خطأ","المراجعة","سطر","خطأ","ملاحظات في التسميع","الدرس  10","التجويد 10","بداية السورة 10","سورة قبل الدرس 10","المراجعة 10","المشاركة+ التفاعل 10","مجموع النقاط اليومي","الملاحظات"]
[null,null,"الاحد","1442/3/29",null,null,null,null,null,null,null,null,null,null,null,null,null,null,null,null,null,null,null,null,null,null,{"$f":"Z9+Y9+X9+W9+U9+V9","v":0}]
[null,null,"الاثنين","1442/4/1",null,null,null,null,null,null,null,null,null,null,null,null,null,null,null,null,null,null,null,null,null,null,{"$f":"Z10+Y10+X10+W10+U10+V10","v":0}]
[null,null,"الثلاثاء","1442/4/2",null,null,null,null,null,null,null,null,null,null,null,null,null,null,null,null,null,null,null,null,null,null,0]
[null,null,"الاربعاء","1442/4/3",null,null,null,null,null,null,null,null,null,null,null,null,null,null,null,null,null,null,null,null,null,null,0]
[null,null,"الخميس","1442/4/4",null,null,null,null,null,null,null,null,null,null,null,null,null,null,null,null,null,null,null,null,null,null,0]
[null,null,"الاحد","1442/4/7",null,null,null,null,null,null,null,null,null,null,null,null,null,null,null,null,null,null,null,null,null,null,0]
[null,null,"الاثنين","1442/4/8",null,null,null,null,null,null,null,null,null,null,null,null,null,null,null,null,null,null,null,null,null,null,0]
[null,null,"الثلاثاء","1442/4/9",null,null,null,null,null,null,null,null,null,null,null,null,null,null,null,null,null,null,null,null,null,null,0]
[null,null,"الاربعاء","1442/4/10",null,null,null,null,null,null,null,null,null,null,null,null,null,null,null,null,null,null,null,null,null,null,0]
[null,null,"الخميس","1442/4/11",null,null,null,null,null,null,null,null,null,null,null,null,null,null,null,null,null,null,null,null,null,null,0]
[null,null,"الاحد","1442/4/14",null,null,null,null,null,null,null,null,null,null,null,null,null,null,null,null,null,null,null,null,null,null,0]
[null,null,"الاثنين","1442/4/15",null,null,null,null,null,null,null,null,null,null,null,null,null,null,null,null,null,null,null,null,null,null,0]
[null,null,"الثلاثاء","1442/4/16",null,null,null,null,null,null,null,null,null,null,null,null,null,null,null,null,null,null,null,null,null,null,0]
[null,null,"الاربعاء","1442/4/17",null,null,null,null,null,null,null,null,null,null,null,null,null,null,null,null,null,null,null,null,null,null,0]
[null,null,"الخميس","1442/4/18",null,null,null,null,null,null,null,null,null,null,null,null,null,null,null,null,null,null,null,null,null,null,0]
[null,null,"الاحد","1442/4/21",null,null,null,null,null,null,null,null,null,null,null,null,null,null,null,null,null,null,null,null,null,null,0]
[null,null,"الاثنين","1442/4/22",null,null,null,null,null,null,null,null,null,null,null,null,null,null,null,null,null,null,null,null,null,null,0]
[null,null,"الثلاثاء","1442/4/23",null,null,null,null,null,null,null,null,null,null,null,null,null,null,null,null,null,null,null,null,null,null,0]
[null,null,"الاربعاء","1442/4/24",null,null,null,null,null,null,null,null,null,null,null,null,null,null,null,null,null,null,null,null,null,null,0]
[null,null,"الخميس","1442/4/25",null,null,null,null,null,null,null,null,null,null,null,null,null,null,null,null,null,null,null,null,null,null,0]

{"sheet":"ورقة1 (10)","index":9,"n_rows":28,"n_cols":28,"rows_kept":28,"cut":false,"hidden":false,"merged":[[1,3,1,5],[2,3,2,5],[2,19,2,20],[2,21,2,22],[3,3,3,5],[3,6,3,7],[3,19,3,20],[3,21,3,22],[4,19,4,20],[4,21,4,22],[5,3,5,5],[5,7,5,9],[5,19,5,20],[5,21,5,22],[6,3,6,10],[29,3,29,4],[29,5,29,6],[4,3,4,5],[4,6,4,8]]}
[null,null,null,"برنامج المتابعة الالكترونية التجريبي لحلقة عبد الله بن مسعود",null,null,null,"    بمكة المكرمة",null,"التابعة لجمعية","تحفيظ القرآن الكريم",null,null,"                     نسعى لمواكبة العصر في تطوراته لخدمة كتاب الله عزوجل",null,null,null,1,"تعليما",2,"وتعلما",3,"وتقنيا","               على وفق خطة مرسومة",null,"بالقرآن نرقى وبه نرتقي","أنشأه: عبد الرحمن إمام"]
[null,null,"   تاريخ بداية الحلقة"," معلم الحلقة",null,null,null,null,null,null,"عدد أسطر الدرس",{"$f":"I9+I10+I11+I12+I13+I14+I15+I16+I17+I18+I19+I20+I21+I22+I23+I24+I25+I26+I27+I28","v":0},null,"عدد صفحات الدرس المحفوظ",{"$f":"L2/15","v":0},null,"عدد الأخطاء ",{"$f":"J9+J10+J11+J12+J13+J14+J15+J16+J17+J18+J19+J20+J21+J22+J23+J24+J25+J26+J27+J28","v":0},null,null,"المواظبة","السلوك",null,"      نسبة الفصل الأول ","المستوى الحالي","أبيات التحفة المحفوظة","معدل الدرجات"]
[null,null," 1441/12/18",null,null,null,null,null,null,null,"عدد أسطر بداية السورة",{"$f":"L9+L10+L11+L12+L13+L14+L15+L16+L17+L18+L19+L20+L21+L22+L23+L24+L25+L26+L27+L28","v":0},null,"عدد صفحات بداية السورة",{"$f":"L3/15","v":0},null,"عدد الأخطاء ",{"$f":"M9+M10+M11+M12+M13+M14+M15+M16+M17+M18+M19+M20+M21+M22+M23+M24+M25+M26+M27+M28","v":0},null,"  حضور مبكر",null,"عدد أيام التأخر",null,{"$f":"AA3","v":0},null,null,{"$f":"AA5/6","v":0}]
[null,null,"اسم الطالب",null,null,null,"اسم الحلقة",null,null,null,"عدد أسطر سورة قبل الدرس",{"$f":"O9+O10+O11+O12+O13+O14+O15+O16+O17+O18+O19+O20+O21+O22+O23+O24+O25+O26+O27+O28","v":0},null,"عدد صفحات سورة قبل الدرس",{"$f":"L4/15","v":0},null,"عدد الأخطاء ",{"$f":"P9+P10+P11+P12+P13+P14+P15+P16+P17+P18+P19+P20+P21+P22+P23+P24+P25+P26+P27+P28","v":0},null,{"$f":"COUNTIFS(G9:G28,\"ح\")","v":0},null,{"$f":"COUNTIF(G9:G28,\"ت\")","v":0},null,"نسبة الفصل الثاني","درجة أخر اختبار ","أبيات الجزرية المحفوظة","مجموع النقاط"]
[null,null,"رسالة خاصة بالطالب",null,null,null,"عبد الله بن مسعود رضي الله عنه",null,null,null,"عدد أسطر المراجعة",{"$f":"R9+R10+R11+R12+R13+R14+R15+R16+R17+R18+R19+R20+R21+R22+R23+R24+R25+R26+R27+R28","v":0},null,"عدد صفحات المراجعة",{"$f":"L5/15","v":0},null,"عدد الأخطاء ",{"$f":"S9+S10+S11+S12+S13+S14+S15+S16+S17+S18+S19+S20+S21+S22+S23+S24+S25+S26+S27+S28","v":0},null,"استئذان",null,"عدد  أيام الغياب",null,null,null,null,{"$f":"AA9+AA10+AA11+AA12+AA13+AA14+AA15+AA16+AA17+AA18+AA19+AA20+AA21+AA22+AA23+AA24+AA25+AA26+AA27+AA28","v":0}]
[null,null,"رسالة خاصة بالحلقة",null,null,null,"وقتها","بعد صلاة العشاء عن بعد",null,null,null,null,null,"المجموع الكلي لصفحات المراجعة",null,null,null,null,null,{"$f":"COUNTIF(G9:G28,\"م\")","v":0},null,{"$f":"COUNTIF(G9:G28,\"غ\")","v":0},null,"المعدل الكلي",null,"أبيات الشاطبية المحفوظة","النقاط المستبدلة"]
[null,null,null,"مدة تجربة البرنامج من تاريخ 1442/3/22هـ إلى نهاية الفصل الأول 1442/4/25 هــ",null,null,null,null,null,null,null,null,null,{"$f":"O5+O4+O3","v":0}]
[null,null,"الأيام ","التاريخ","المسار","المقررات","تحضير","الدرس","سطر","خطأ","بداية السورة","سطر","خطأ","سورة قبل الدرس","سطر","خطأ","المراجعة","سطر","خطأ","ملاحظات في التسميع","الدرس  10","التجويد 10","بداية السورة 10","سورة قبل الدرس 10","المراجعة 10","المشاركة+ التفاعل 10","مجموع النقاط اليومي","الملاحظات"]
[null,null,"الاحد","1442/3/29",null,null,null,null,null,null,null,null,null,null,null,null,null,null,null,null,null,null,null,null,null,null,{"$f":"Z9+Y9+X9+W9+U9+V9","v":0}]
[null,null,"الاثنين","1442/4/1",null,null,null,null,null,null,null,null,null,null,null,null,null,null,null,null,null,null,null,null,null,null,{"$f":"Z10+Y10+X10+W10+U10+V10","v":0}]
[null,null,"الثلاثاء","1442/4/2",null,null,null,null,null,null,null,null,null,null,null,null,null,null,null,null,null,null,null,null,null,null,0]
[null,null,"الاربعاء","1442/4/3",null,null,null,null,null,null,null,null,null,null,null,null,null,null,null,null,null,null,null,null,null,null,0]
[null,null,"الخميس","1442/4/4",null,null,null,null,null,null,null,null,null,null,null,null,null,null,null,null,null,null,null,null,null,null,0]
[null,null,"الاحد","1442/4/7",null,null,null,null,null,null,null,null,null,null,null,null,null,null,null,null,null,null,null,null,null,null,0]
[null,null,"الاثنين","1442/4/8",null,null,null,null,null,null,null,null,null,null,null,null,null,null,null,null,null,null,null,null,null,null,0]
[null,null,"الثلاثاء","1442/4/9",null,null,null,null,null,null,null,null,null,null,null,null,null,null,null,null,null,null,null,null,null,null,0]
[null,null,"الاربعاء","1442/4/10",null,null,null,null,null,null,null,null,null,null,null,null,null,null,null,null,null,null,null,null,null,null,0]
[null,null,"الخميس","1442/4/11",null,null,null,null,null,null,null,null,null,null,null,null,null,null,null,null,null,null,null,null,null,null,0]
[null,null,"الاحد","1442/4/14",null,null,null,null,null,null,null,null,null,null,null,null,null,null,null,null,null,null,null,null,null,null,0]
[null,null,"الاثنين","1442/4/15",null,null,null,null,null,null,null,null,null,null,null,null,null,null,null,null,null,null,null,null,null,null,0]
[null,null,"الثلاثاء","1442/4/16",null,null,null,null,null,null,null,null,null,null,null,null,null,null,null,null,null,null,null,null,null,null,0]
[null,null,"الاربعاء","1442/4/17",null,null,null,null,null,null,null,null,null,null,null,null,null,null,null,null,null,null,null,null,null,null,0]
[null,null,"الخميس","1442/4/18",null,null,null,null,null,null,null,null,null,null,null,null,null,null,null,null,null,null,null,null,null,null,0]
[null,null,"الاحد","1442/4/21",null,null,null,null,null,null,null,null,null,null,null,null,null,null,null,null,null,null,null,null,null,null,0]
[null,null,"الاثنين","1442/4/22",null,null,null,null,null,null,null,null,null,null,null,null,null,null,null,null,null,null,null,null,null,null,0]
[null,null,"الثلاثاء","1442/4/23",null,null,null,null,null,null,null,null,null,null,null,null,null,null,null,null,null,null,null,null,null,null,0]
[null,null,"الاربعاء","1442/4/24",null,null,null,null,null,null,null,null,null,null,null,null,null,null,null,null,null,null,null,null,null,null,0]
[null,null,"الخميس","1442/4/25",null,null,null,null,null,null,null,null,null,null,null,null,null,null,null,null,null,null,null,null,null,null,0]

{"sheet":"ورقة1 (11)","index":10,"n_rows":28,"n_cols":28,"rows_kept":28,"cut":false,"hidden":false,"merged":[[1,3,1,5],[2,3,2,5],[2,19,2,20],[2,21,2,22],[3,3,3,5],[3,6,3,7],[3,19,3,20],[3,21,3,22],[4,19,4,20],[4,21,4,22],[5,3,5,5],[5,7,5,9],[5,19,5,20],[5,21,5,22],[6,3,6,10],[29,3,29,4],[29,5,29,6],[4,3,4,5],[4,6,4,8]]}
[null,null,null,"برنامج المتابعة الالكترونية التجريبي لحلقة عبد الله بن مسعود",null,null,null,"    بمكة المكرمة",null,"التابعة لجمعية","تحفيظ القرآن الكريم",null,null,"                     نسعى لمواكبة العصر في تطوراته لخدمة كتاب الله عزوجل",null,null,null,1,"تعليما",2,"وتعلما",3,"وتقنيا","               على وفق خطة مرسومة",null,"بالقرآن نرقى وبه نرتقي","أنشأه: عبد الرحمن إمام"]
[null,null,"   تاريخ بداية الحلقة"," معلم الحلقة",null,null,null,null,null,null,"عدد أسطر الدرس",{"$f":"I9+I10+I11+I12+I13+I14+I15+I16+I17+I18+I19+I20+I21+I22+I23+I24+I25+I26+I27+I28","v":0},null,"عدد صفحات الدرس المحفوظ",{"$f":"L2/15","v":0},null,"عدد الأخطاء ",{"$f":"J9+J10+J11+J12+J13+J14+J15+J16+J17+J18+J19+J20+J21+J22+J23+J24+J25+J26+J27+J28","v":0},null,null,"المواظبة","السلوك",null,"      نسبة الفصل الأول ","المستوى الحالي","أبيات التحفة المحفوظة","معدل الدرجات"]
[null,null," 1441/12/18",null,null,null,null,null,null,null,"عدد أسطر بداية السورة",{"$f":"L9+L10+L11+L12+L13+L14+L15+L16+L17+L18+L19+L20+L21+L22+L23+L24+L25+L26+L27+L28","v":0},null,"عدد صفحات بداية السورة",{"$f":"L3/15","v":0},null,"عدد الأخطاء ",{"$f":"M9+M10+M11+M12+M13+M14+M15+M16+M17+M18+M19+M20+M21+M22+M23+M24+M25+M26+M27+M28","v":0},null,"  حضور مبكر",null,"عدد أيام التأخر",null,{"$f":"AA3","v":0},null,null,{"$f":"AA5/6","v":0}]
[null,null,"اسم الطالب",null,null,null,"اسم الحلقة",null,null,null,"عدد أسطر سورة قبل الدرس",{"$f":"O9+O10+O11+O12+O13+O14+O15+O16+O17+O18+O19+O20+O21+O22+O23+O24+O25+O26+O27+O28","v":0},null,"عدد صفحات سورة قبل الدرس",{"$f":"L4/15","v":0},null,"عدد الأخطاء ",{"$f":"P9+P10+P11+P12+P13+P14+P15+P16+P17+P18+P19+P20+P21+P22+P23+P24+P25+P26+P27+P28","v":0},null,{"$f":"COUNTIFS(G9:G28,\"ح\")","v":0},null,{"$f":"COUNTIF(G9:G28,\"ت\")","v":0},null,"نسبة الفصل الثاني","درجة أخر اختبار ","أبيات الجزرية المحفوظة","مجموع النقاط"]
[null,null,"رسالة خاصة بالطالب",null,null,null,"عبد الله بن مسعود رضي الله عنه",null,null,null,"عدد أسطر المراجعة",{"$f":"R9+R10+R11+R12+R13+R14+R15+R16+R17+R18+R19+R20+R21+R22+R23+R24+R25+R26+R27+R28","v":0},null,"عدد صفحات المراجعة",{"$f":"L5/15","v":0},null,"عدد الأخطاء ",{"$f":"S9+S10+S11+S12+S13+S14+S15+S16+S17+S18+S19+S20+S21+S22+S23+S24+S25+S26+S27+S28","v":0},null,"استئذان",null,"عدد  أيام الغياب",null,null,null,null,{"$f":"AA9+AA10+AA11+AA12+AA13+AA14+AA15+AA16+AA17+AA18+AA19+AA20+AA21+AA22+AA23+AA24+AA25+AA26+AA27+AA28","v":0}]
[null,null,"رسالة خاصة بالحلقة",null,null,null,"وقتها","بعد صلاة العشاء عن بعد",null,null,null,null,null,"المجموع الكلي لصفحات المراجعة",null,null,null,null,null,{"$f":"COUNTIF(G9:G28,\"م\")","v":0},null,{"$f":"COUNTIF(G9:G28,\"غ\")","v":0},null,"المعدل الكلي",null,"أبيات الشاطبية المحفوظة","النقاط المستبدلة"]
[null,null,null,"مدة تجربة البرنامج من تاريخ 1442/3/22هـ إلى نهاية الفصل الأول 1442/4/25 هــ",null,null,null,null,null,null,null,null,null,{"$f":"O5+O4+O3","v":0}]
[null,null,"الأيام ","التاريخ","المسار","المقررات","تحضير","الدرس","سطر","خطأ","بداية السورة","سطر","خطأ","سورة قبل الدرس","سطر","خطأ","المراجعة","سطر","خطأ","ملاحظات في التسميع","الدرس  10","التجويد 10","بداية السورة 10","سورة قبل الدرس 10","المراجعة 10","المشاركة+ التفاعل 10","مجموع النقاط اليومي","الملاحظات"]
[null,null,"الاحد","1442/3/29",null,null,null,null,null,null,null,null,null,null,null,null,null,null,null,null,null,null,null,null,null,null,{"$f":"Z9+Y9+X9+W9+U9+V9","v":0}]
[null,null,"الاثنين","1442/4/1",null,null,null,null,null,null,null,null,null,null,null,null,null,null,null,null,null,null,null,null,null,null,{"$f":"Z10+Y10+X10+W10+U10+V10","v":0}]
[null,null,"الثلاثاء","1442/4/2",null,null,null,null,null,null,null,null,null,null,null,null,null,null,null,null,null,null,null,null,null,null,0]
[null,null,"الاربعاء","1442/4/3",null,null,null,null,null,null,null,null,null,null,null,null,null,null,null,null,null,null,null,null,null,null,0]
[null,null,"الخميس","1442/4/4",null,null,null,null,null,null,null,null,null,null,null,null,null,null,null,null,null,null,null,null,null,null,0]
[null,null,"الاحد","1442/4/7",null,null,null,null,null,null,null,null,null,null,null,null,null,null,null,null,null,null,null,null,null,null,0]
[null,null,"الاثنين","1442/4/8",null,null,null,null,null,null,null,null,null,null,null,null,null,null,null,null,null,null,null,null,null,null,0]
[null,null,"الثلاثاء","1442/4/9",null,null,null,null,null,null,null,null,null,null,null,null,null,null,null,null,null,null,null,null,null,null,0]
[null,null,"الاربعاء","1442/4/10",null,null,null,null,null,null,null,null,null,null,null,null,null,null,null,null,null,null,null,null,null,null,0]
[null,null,"الخميس","1442/4/11",null,null,null,null,null,null,null,null,null,null,null,null,null,null,null,null,null,null,null,null,null,null,0]
[null,null,"الاحد","1442/4/14",null,null,null,null,null,null,null,null,null,null,null,null,null,null,null,null,null,null,null,null,null,null,0]
[null,null,"الاثنين","1442/4/15",null,null,null,null,null,null,null,null,null,null,null,null,null,null,null,null,null,null,null,null,null,null,0]
[null,null,"الثلاثاء","1442/4/16",null,null,null,null,null,null,null,null,null,null,null,null,null,null,null,null,null,null,null,null,null,null,0]
[null,null,"الاربعاء","1442/4/17",null,null,null,null,null,null,null,null,null,null,null,null,null,null,null,null,null,null,null,null,null,null,0]
[null,null,"الخميس","1442/4/18",null,null,null,null,null,null,null,null,null,null,null,null,null,null,null,null,null,null,null,null,null,null,0]
[null,null,"الاحد","1442/4/21",null,null,null,null,null,null,null,null,null,null,null,null,null,null,null,null,null,null,null,null,null,null,0]
[null,null,"الاثنين","1442/4/22",null,null,null,null,null,null,null,null,null,null,null,null,null,null,null,null,null,null,null,null,null,null,0]
[null,null,"الثلاثاء","1442/4/23",null,null,null,null,null,null,null,null,null,null,null,null,null,null,null,null,null,null,null,null,null,null,0]
[null,null,"الاربعاء","1442/4/24",null,null,null,null,null,null,null,null,null,null,null,null,null,null,null,null,null,null,null,null,null,null,0]
[null,null,"الخميس","1442/4/25",null,null,null,null,null,null,null,null,null,null,null,null,null,null,null,null,null,null,null,null,null,null,0]

{"sheet":"ورقة1 (12)","index":11,"n_rows":28,"n_cols":28,"rows_kept":28,"cut":false,"hidden":false,"merged":[[1,3,1,5],[2,3,2,5],[2,19,2,20],[2,21,2,22],[3,3,3,5],[3,6,3,7],[3,19,3,20],[3,21,3,22],[4,19,4,20],[4,21,4,22],[5,3,5,5],[5,7,5,9],[5,19,5,20],[5,21,5,22],[6,3,6,10],[29,3,29,4],[29,5,29,6],[4,3,4,5],[4,6,4,8]]}
[null,null,null,"برنامج المتابعة الالكترونية التجريبي لحلقة عبد الله بن مسعود",null,null,null,"    بمكة المكرمة",null,"التابعة لجمعية","تحفيظ القرآن الكريم",null,null,"                     نسعى لمواكبة العصر في تطوراته لخدمة كتاب الله عزوجل",null,null,null,1,"تعليما",2,"وتعلما",3,"وتقنيا","               على وفق خطة مرسومة",null,"بالقرآن نرقى وبه نرتقي","أنشأه: عبد الرحمن إمام"]
[null,null,"   تاريخ بداية الحلقة"," معلم الحلقة",null,null,null,null,null,null,"عدد أسطر الدرس",{"$f":"I9+I10+I11+I12+I13+I14+I15+I16+I17+I18+I19+I20+I21+I22+I23+I24+I25+I26+I27+I28","v":0},null,"عدد صفحات الدرس المحفوظ",{"$f":"L2/15","v":0},null,"عدد الأخطاء ",{"$f":"J9+J10+J11+J12+J13+J14+J15+J16+J17+J18+J19+J20+J21+J22+J23+J24+J25+J26+J27+J28","v":0},null,null,"المواظبة","السلوك",null,"      نسبة الفصل الأول ","المستوى الحالي","أبيات التحفة المحفوظة","معدل الدرجات"]
[null,null," 1441/12/18",null,null,null,null,null,null,null,"عدد أسطر بداية السورة",{"$f":"L9+L10+L11+L12+L13+L14+L15+L16+L17+L18+L19+L20+L21+L22+L23+L24+L25+L26+L27+L28","v":0},null,"عدد صفحات بداية السورة",{"$f":"L3/15","v":0},null,"عدد الأخطاء ",{"$f":"M9+M10+M11+M12+M13+M14+M15+M16+M17+M18+M19+M20+M21+M22+M23+M24+M25+M26+M27+M28","v":0},null,"  حضور مبكر",null,"عدد أيام التأخر",null,{"$f":"AA3","v":0},null,null,{"$f":"AA5/6","v":0}]
[null,null,"اسم الطالب",null,null,null,"اسم الحلقة",null,null,null,"عدد أسطر سورة قبل الدرس",{"$f":"O9+O10+O11+O12+O13+O14+O15+O16+O17+O18+O19+O20+O21+O22+O23+O24+O25+O26+O27+O28","v":0},null,"عدد صفحات سورة قبل الدرس",{"$f":"L4/15","v":0},null,"عدد الأخطاء ",{"$f":"P9+P10+P11+P12+P13+P14+P15+P16+P17+P18+P19+P20+P21+P22+P23+P24+P25+P26+P27+P28","v":0},null,{"$f":"COUNTIFS(G9:G28,\"ح\")","v":0},null,{"$f":"COUNTIF(G9:G28,\"ت\")","v":0},null,"نسبة الفصل الثاني","درجة أخر اختبار ","أبيات الجزرية المحفوظة","مجموع النقاط"]
[null,null,"رسالة خاصة بالطالب",null,null,null,"عبد الله بن مسعود رضي الله عنه",null,null,null,"عدد أسطر المراجعة",{"$f":"R9+R10+R11+R12+R13+R14+R15+R16+R17+R18+R19+R20+R21+R22+R23+R24+R25+R26+R27+R28","v":0},null,"عدد صفحات المراجعة",{"$f":"L5/15","v":0},null,"عدد الأخطاء ",{"$f":"S9+S10+S11+S12+S13+S14+S15+S16+S17+S18+S19+S20+S21+S22+S23+S24+S25+S26+S27+S28","v":0},null,"استئذان",null,"عدد  أيام الغياب",null,null,null,null,{"$f":"AA9+AA10+AA11+AA12+AA13+AA14+AA15+AA16+AA17+AA18+AA19+AA20+AA21+AA22+AA23+AA24+AA25+AA26+AA27+AA28","v":0}]
[null,null,"رسالة خاصة بالحلقة",null,null,null,"وقتها","بعد صلاة العشاء عن بعد",null,null,null,null,null,"المجموع الكلي لصفحات المراجعة",null,null,null,null,null,{"$f":"COUNTIF(G9:G28,\"م\")","v":0},null,{"$f":"COUNTIF(G9:G28,\"غ\")","v":0},null,"المعدل الكلي",null,"أبيات الشاطبية المحفوظة","النقاط المستبدلة"]
[null,null,null,"مدة تجربة البرنامج من تاريخ 1442/3/22هـ إلى نهاية الفصل الأول 1442/4/25 هــ",null,null,null,null,null,null,null,null,null,{"$f":"O5+O4+O3","v":0}]
[null,null,"الأيام ","التاريخ","المسار","المقررات","تحضير","الدرس","سطر","خطأ","بداية السورة","سطر","خطأ","سورة قبل الدرس","سطر","خطأ","المراجعة","سطر","خطأ","ملاحظات في التسميع","الدرس  10","التجويد 10","بداية السورة 10","سورة قبل الدرس 10","المراجعة 10","المشاركة+ التفاعل 10","مجموع النقاط اليومي","الملاحظات"]
[null,null,"الاحد","1442/3/29",null,null,null,null,null,null,null,null,null,null,null,null,null,null,null,null,null,null,null,null,null,null,{"$f":"Z9+Y9+X9+W9+U9+V9","v":0}]
[null,null,"الاثنين","1442/4/1",null,null,null,null,null,null,null,null,null,null,null,null,null,null,null,null,null,null,null,null,null,null,{"$f":"Z10+Y10+X10+W10+U10+V10","v":0}]
[null,null,"الثلاثاء","1442/4/2",null,null,null,null,null,null,null,null,null,null,null,null,null,null,null,null,null,null,null,null,null,null,0]
[null,null,"الاربعاء","1442/4/3",null,null,null,null,null,null,null,null,null,null,null,null,null,null,null,null,null,null,null,null,null,null,0]
[null,null,"الخميس","1442/4/4",null,null,null,null,null,null,null,null,null,null,null,null,null,null,null,null,null,null,null,null,null,null,0]
[null,null,"الاحد","1442/4/7",null,null,null,null,null,null,null,null,null,null,null,null,null,null,null,null,null,null,null,null,null,null,0]
[null,null,"الاثنين","1442/4/8",null,null,null,null,null,null,null,null,null,null,null,null,null,null,null,null,null,null,null,null,null,null,0]
[null,null,"الثلاثاء","1442/4/9",null,null,null,null,null,null,null,null,null,null,null,null,null,null,null,null,null,null,null,null,null,null,0]
[null,null,"الاربعاء","1442/4/10",null,null,null,null,null,null,null,null,null,null,null,null,null,null,null,null,null,null,null,null,null,null,0]
[null,null,"الخميس","1442/4/11",null,null,null,null,null,null,null,null,null,null,null,null,null,null,null,null,null,null,null,null,null,null,0]
[null,null,"الاحد","1442/4/14",null,null,null,null,null,null,null,null,null,null,null,null,null,null,null,null,null,null,null,null,null,null,0]
[null,null,"الاثنين","1442/4/15",null,null,null,null,null,null,null,null,null,null,null,null,null,null,null,null,null,null,null,null,null,null,0]
[null,null,"الثلاثاء","1442/4/16",null,null,null,null,null,null,null,null,null,null,null,null,null,null,null,null,null,null,null,null,null,null,0]
[null,null,"الاربعاء","1442/4/17",null,null,null,null,null,null,null,null,null,null,null,null,null,null,null,null,null,null,null,null,null,null,0]
[null,null,"الخميس","1442/4/18",null,null,null,null,null,null,null,null,null,null,null,null,null,null,null,null,null,null,null,null,null,null,0]
[null,null,"الاحد","1442/4/21",null,null,null,null,null,null,null,null,null,null,null,null,null,null,null,null,null,null,null,null,null,null,0]
[null,null,"الاثنين","1442/4/22",null,null,null,null,null,null,null,null,null,null,null,null,null,null,null,null,null,null,null,null,null,null,0]
[null,null,"الثلاثاء","1442/4/23",null,null,null,null,null,null,null,null,null,null,null,null,null,null,null,null,null,null,null,null,null,null,0]
[null,null,"الاربعاء","1442/4/24",null,null,null,null,null,null,null,null,null,null,null,null,null,null,null,null,null,null,null,null,null,null,0]
[null,null,"الخميس","1442/4/25",null,null,null,null,null,null,null,null,null,null,null,null,null,null,null,null,null,null,null,null,null,null,0]

{"sheet":"ورقة1 (13)","index":12,"n_rows":28,"n_cols":28,"rows_kept":28,"cut":false,"hidden":false,"merged":[[1,3,1,5],[2,3,2,5],[2,19,2,20],[2,21,2,22],[3,3,3,5],[3,6,3,7],[3,19,3,20],[3,21,3,22],[4,19,4,20],[4,21,4,22],[5,3,5,5],[5,7,5,9],[5,19,5,20],[5,21,5,22],[6,3,6,10],[29,3,29,4],[29,5,29,6],[4,3,4,5],[4,6,4,8]]}
[null,null,null,"برنامج المتابعة الالكترونية التجريبي لحلقة عبد الله بن مسعود",null,null,null,"    بمكة المكرمة",null,"التابعة لجمعية","تحفيظ القرآن الكريم",null,null,"                     نسعى لمواكبة العصر في تطوراته لخدمة كتاب الله عزوجل",null,null,null,1,"تعليما",2,"وتعلما",3,"وتقنيا","               على وفق خطة مرسومة",null,"بالقرآن نرقى وبه نرتقي","أنشأه: عبد الرحمن إمام"]
[null,null,"   تاريخ بداية الحلقة"," معلم الحلقة",null,null,null,null,null,null,"عدد أسطر الدرس",{"$f":"I9+I10+I11+I12+I13+I14+I15+I16+I17+I18+I19+I20+I21+I22+I23+I24+I25+I26+I27+I28","v":0},null,"عدد صفحات الدرس المحفوظ",{"$f":"L2/15","v":0},null,"عدد الأخطاء ",{"$f":"J9+J10+J11+J12+J13+J14+J15+J16+J17+J18+J19+J20+J21+J22+J23+J24+J25+J26+J27+J28","v":0},null,null,"المواظبة","السلوك",null,"      نسبة الفصل الأول ","المستوى الحالي","أبيات التحفة المحفوظة","معدل الدرجات"]
[null,null," 1441/12/18",null,null,null,null,null,null,null,"عدد أسطر بداية السورة",{"$f":"L9+L10+L11+L12+L13+L14+L15+L16+L17+L18+L19+L20+L21+L22+L23+L24+L25+L26+L27+L28","v":0},null,"عدد صفحات بداية السورة",{"$f":"L3/15","v":0},null,"عدد الأخطاء ",{"$f":"M9+M10+M11+M12+M13+M14+M15+M16+M17+M18+M19+M20+M21+M22+M23+M24+M25+M26+M27+M28","v":0},null,"  حضور مبكر",null,"عدد أيام التأخر",null,{"$f":"AA3","v":0},null,null,{"$f":"AA5/6","v":0}]
[null,null,"اسم الطالب",null,null,null,"اسم الحلقة",null,null,null,"عدد أسطر سورة قبل الدرس",{"$f":"O9+O10+O11+O12+O13+O14+O15+O16+O17+O18+O19+O20+O21+O22+O23+O24+O25+O26+O27+O28","v":0},null,"عدد صفحات سورة قبل الدرس",{"$f":"L4/15","v":0},null,"عدد الأخطاء ",{"$f":"P9+P10+P11+P12+P13+P14+P15+P16+P17+P18+P19+P20+P21+P22+P23+P24+P25+P26+P27+P28","v":0},null,{"$f":"COUNTIFS(G9:G28,\"ح\")","v":0},null,{"$f":"COUNTIF(G9:G28,\"ت\")","v":0},null,"نسبة الفصل الثاني","درجة أخر اختبار ","أبيات الجزرية المحفوظة","مجموع النقاط"]
[null,null,"رسالة خاصة بالطالب",null,null,null,"عبد الله بن مسعود رضي الله عنه",null,null,null,"عدد أسطر المراجعة",{"$f":"R9+R10+R11+R12+R13+R14+R15+R16+R17+R18+R19+R20+R21+R22+R23+R24+R25+R26+R27+R28","v":0},null,"عدد صفحات المراجعة",{"$f":"L5/15","v":0},null,"عدد الأخطاء ",{"$f":"S9+S10+S11+S12+S13+S14+S15+S16+S17+S18+S19+S20+S21+S22+S23+S24+S25+S26+S27+S28","v":0},null,"استئذان",null,"عدد  أيام الغياب",null,null,null,null,{"$f":"AA9+AA10+AA11+AA12+AA13+AA14+AA15+AA16+AA17+AA18+AA19+AA20+AA21+AA22+AA23+AA24+AA25+AA26+AA27+AA28","v":0}]
[null,null,"رسالة خاصة بالحلقة",null,null,null,"وقتها","بعد صلاة العشاء عن بعد",null,null,null,null,null,"المجموع الكلي لصفحات المراجعة",null,null,null,null,null,{"$f":"COUNTIF(G9:G28,\"م\")","v":0},null,{"$f":"COUNTIF(G9:G28,\"غ\")","v":0},null,"المعدل الكلي",null,"أبيات الشاطبية المحفوظة","النقاط المستبدلة"]
[null,null,null,"مدة تجربة البرنامج من تاريخ 1442/3/22هـ إلى نهاية الفصل الأول 1442/4/25 هــ",null,null,null,null,null,null,null,null,null,{"$f":"O5+O4+O3","v":0}]
[null,null,"الأيام ","التاريخ","المسار","المقررات","تحضير","الدرس","سطر","خطأ","بداية السورة","سطر","خطأ","سورة قبل الدرس","سطر","خطأ","المراجعة","سطر","خطأ","ملاحظات في التسميع","الدرس  10","التجويد 10","بداية السورة 10","سورة قبل الدرس 10","المراجعة 10","المشاركة+ التفاعل 10","مجموع النقاط اليومي","الملاحظات"]
[null,null,"الاحد","1442/3/29",null,null,null,null,null,null,null,null,null,null,null,null,null,null,null,null,null,null,null,null,null,null,{"$f":"Z9+Y9+X9+W9+U9+V9","v":0}]
[null,null,"الاثنين","1442/4/1",null,null,null,null,null,null,null,null,null,null,null,null,null,null,null,null,null,null,null,null,null,null,{"$f":"Z10+Y10+X10+W10+U10+V10","v":0}]
[null,null,"الثلاثاء","1442/4/2",null,null,null,null,null,null,null,null,null,null,null,null,null,null,null,null,null,null,null,null,null,null,0]
[null,null,"الاربعاء","1442/4/3",null,null,null,null,null,null,null,null,null,null,null,null,null,null,null,null,null,null,null,null,null,null,0]
[null,null,"الخميس","1442/4/4",null,null,null,null,null,null,null,null,null,null,null,null,null,null,null,null,null,null,null,null,null,null,0]
[null,null,"الاحد","1442/4/7",null,null,null,null,null,null,null,null,null,null,null,null,null,null,null,null,null,null,null,null,null,null,0]
[null,null,"الاثنين","1442/4/8",null,null,null,null,null,null,null,null,null,null,null,null,null,null,null,null,null,null,null,null,null,null,0]
[null,null,"الثلاثاء","1442/4/9",null,null,null,null,null,null,null,null,null,null,null,null,null,null,null,null,null,null,null,null,null,null,0]
[null,null,"الاربعاء","1442/4/10",null,null,null,null,null,null,null,null,null,null,null,null,null,null,null,null,null,null,null,null,null,null,0]
[null,null,"الخميس","1442/4/11",null,null,null,null,null,null,null,null,null,null,null,null,null,null,null,null,null,null,null,null,null,null,0]
[null,null,"الاحد","1442/4/14",null,null,null,null,null,null,null,null,null,null,null,null,null,null,null,null,null,null,null,null,null,null,0]
[null,null,"الاثنين","1442/4/15",null,null,null,null,null,null,null,null,null,null,null,null,null,null,null,null,null,null,null,null,null,null,0]
[null,null,"الثلاثاء","1442/4/16",null,null,null,null,null,null,null,null,null,null,null,null,null,null,null,null,null,null,null,null,null,null,0]
[null,null,"الاربعاء","1442/4/17",null,null,null,null,null,null,null,null,null,null,null,null,null,null,null,null,null,null,null,null,null,null,0]
[null,null,"الخميس","1442/4/18",null,null,null,null,null,null,null,null,null,null,null,null,null,null,null,null,null,null,null,null,null,null,0]
[null,null,"الاحد","1442/4/21",null,null,null,null,null,null,null,null,null,null,null,null,null,null,null,null,null,null,null,null,null,null,0]
[null,null,"الاثنين","1442/4/22",null,null,null,null,null,null,null,null,null,null,null,null,null,null,null,null,null,null,null,null,null,null,0]
[null,null,"الثلاثاء","1442/4/23",null,null,null,null,null,null,null,null,null,null,null,null,null,null,null,null,null,null,null,null,null,null,0]
[null,null,"الاربعاء","1442/4/24",null,null,null,null,null,null,null,null,null,null,null,null,null,null,null,null,null,null,null,null,null,null,0]
[null,null,"الخميس","1442/4/25",null,null,null,null,null,null,null,null,null,null,null,null,null,null,null,null,null,null,null,null,null,null,0]

{"sheet":"ورقة1 (14)","index":13,"n_rows":28,"n_cols":28,"rows_kept":28,"cut":false,"hidden":false,"merged":[[1,3,1,5],[2,3,2,5],[2,19,2,20],[2,21,2,22],[3,3,3,5],[3,6,3,7],[3,19,3,20],[3,21,3,22],[4,19,4,20],[4,21,4,22],[5,3,5,5],[5,7,5,9],[5,19,5,20],[5,21,5,22],[6,3,6,10],[29,3,29,4],[29,5,29,6],[4,3,4,5],[4,6,4,8]]}
[null,null,null,"برنامج المتابعة الالكترونية التجريبي لحلقة عبد الله بن مسعود",null,null,null,"    بمكة المكرمة",null,"التابعة لجمعية","تحفيظ القرآن الكريم",null,null,"                     نسعى لمواكبة العصر في تطوراته لخدمة كتاب الله عزوجل",null,null,null,1,"تعليما",2,"وتعلما",3,"وتقنيا","               على وفق خطة مرسومة",null,"بالقرآن نرقى وبه نرتقي","أنشأه: عبد الرحمن إمام"]
[null,null,"   تاريخ بداية الحلقة"," معلم الحلقة",null,null,null,null,null,null,"عدد أسطر الدرس",{"$f":"I9+I10+I11+I12+I13+I14+I15+I16+I17+I18+I19+I20+I21+I22+I23+I24+I25+I26+I27+I28","v":0},null,"عدد صفحات الدرس المحفوظ",{"$f":"L2/15","v":0},null,"عدد الأخطاء ",{"$f":"J9+J10+J11+J12+J13+J14+J15+J16+J17+J18+J19+J20+J21+J22+J23+J24+J25+J26+J27+J28","v":0},null,null,"المواظبة","السلوك",null,"      نسبة الفصل الأول ","المستوى الحالي","أبيات التحفة المحفوظة","معدل الدرجات"]
[null,null," 1441/12/18",null,null,null,null,null,null,null,"عدد أسطر بداية السورة",{"$f":"L9+L10+L11+L12+L13+L14+L15+L16+L17+L18+L19+L20+L21+L22+L23+L24+L25+L26+L27+L28","v":0},null,"عدد صفحات بداية السورة",{"$f":"L3/15","v":0},null,"عدد الأخطاء ",{"$f":"M9+M10+M11+M12+M13+M14+M15+M16+M17+M18+M19+M20+M21+M22+M23+M24+M25+M26+M27+M28","v":0},null,"  حضور مبكر",null,"عدد أيام التأخر",null,{"$f":"AA3","v":0},null,null,{"$f":"AA5/6","v":0}]
[null,null,"اسم الطالب",null,null,null,"اسم الحلقة",null,null,null,"عدد أسطر سورة قبل الدرس",{"$f":"O9+O10+O11+O12+O13+O14+O15+O16+O17+O18+O19+O20+O21+O22+O23+O24+O25+O26+O27+O28","v":0},null,"عدد صفحات سورة قبل الدرس",{"$f":"L4/15","v":0},null,"عدد الأخطاء ",{"$f":"P9+P10+P11+P12+P13+P14+P15+P16+P17+P18+P19+P20+P21+P22+P23+P24+P25+P26+P27+P28","v":0},null,{"$f":"COUNTIFS(G9:G28,\"ح\")","v":0},null,{"$f":"COUNTIF(G9:G28,\"ت\")","v":0},null,"نسبة الفصل الثاني","درجة أخر اختبار ","أبيات الجزرية المحفوظة","مجموع النقاط"]
[null,null,"رسالة خاصة بالطالب",null,null,null,"عبد الله بن مسعود رضي الله عنه",null,null,null,"عدد أسطر المراجعة",{"$f":"R9+R10+R11+R12+R13+R14+R15+R16+R17+R18+R19+R20+R21+R22+R23+R24+R25+R26+R27+R28","v":0},null,"عدد صفحات المراجعة",{"$f":"L5/15","v":0},null,"عدد الأخطاء ",{"$f":"S9+S10+S11+S12+S13+S14+S15+S16+S17+S18+S19+S20+S21+S22+S23+S24+S25+S26+S27+S28","v":0},null,"استئذان",null,"عدد  أيام الغياب",null,null,null,null,{"$f":"AA9+AA10+AA11+AA12+AA13+AA14+AA15+AA16+AA17+AA18+AA19+AA20+AA21+AA22+AA23+AA24+AA25+AA26+AA27+AA28","v":0}]
[null,null,"رسالة خاصة بالحلقة",null,null,null,"وقتها","بعد صلاة العشاء عن بعد",null,null,null,null,null,"المجموع الكلي لصفحات المراجعة",null,null,null,null,null,{"$f":"COUNTIF(G9:G28,\"م\")","v":0},null,{"$f":"COUNTIF(G9:G28,\"غ\")","v":0},null,"المعدل الكلي",null,"أبيات الشاطبية المحفوظة","النقاط المستبدلة"]
[null,null,null,"مدة تجربة البرنامج من تاريخ 1442/3/22هـ إلى نهاية الفصل الأول 1442/4/25 هــ",null,null,null,null,null,null,null,null,null,{"$f":"O5+O4+O3","v":0}]
[null,null,"الأيام ","التاريخ","المسار","المقررات","تحضير","الدرس","سطر","خطأ","بداية السورة","سطر","خطأ","سورة قبل الدرس","سطر","خطأ","المراجعة","سطر","خطأ","ملاحظات في التسميع","الدرس  10","التجويد 10","بداية السورة 10","سورة قبل الدرس 10","المراجعة 10","المشاركة+ التفاعل 10","مجموع النقاط اليومي","الملاحظات"]
[null,null,"الاحد","1442/3/29",null,null,null,null,null,null,null,null,null,null,null,null,null,null,null,null,null,null,null,null,null,null,{"$f":"Z9+Y9+X9+W9+U9+V9","v":0}]
[null,null,"الاثنين","1442/4/1",null,null,null,null,null,null,null,null,null,null,null,null,null,null,null,null,null,null,null,null,null,null,{"$f":"Z10+Y10+X10+W10+U10+V10","v":0}]
[null,null,"الثلاثاء","1442/4/2",null,null,null,null,null,null,null,null,null,null,null,null,null,null,null,null,null,null,null,null,null,null,0]
[null,null,"الاربعاء","1442/4/3",null,null,null,null,null,null,null,null,null,null,null,null,null,null,null,null,null,null,null,null,null,null,0]
[null,null,"الخميس","1442/4/4",null,null,null,null,null,null,null,null,null,null,null,null,null,null,null,null,null,null,null,null,null,null,0]
[null,null,"الاحد","1442/4/7",null,null,null,null,null,null,null,null,null,null,null,null,null,null,null,null,null,null,null,null,null,null,0]
[null,null,"الاثنين","1442/4/8",null,null,null,null,null,null,null,null,null,null,null,null,null,null,null,null,null,null,null,null,null,null,0]
[null,null,"الثلاثاء","1442/4/9",null,null,null,null,null,null,null,null,null,null,null,null,null,null,null,null,null,null,null,null,null,null,0]
[null,null,"الاربعاء","1442/4/10",null,null,null,null,null,null,null,null,null,null,null,null,null,null,null,null,null,null,null,null,null,null,0]
[null,null,"الخميس","1442/4/11",null,null,null,null,null,null,null,null,null,null,null,null,null,null,null,null,null,null,null,null,null,null,0]
[null,null,"الاحد","1442/4/14",null,null,null,null,null,null,null,null,null,null,null,null,null,null,null,null,null,null,null,null,null,null,0]
[null,null,"الاثنين","1442/4/15",null,null,null,null,null,null,null,null,null,null,null,null,null,null,null,null,null,null,null,null,null,null,0]
[null,null,"الثلاثاء","1442/4/16",null,null,null,null,null,null,null,null,null,null,null,null,null,null,null,null,null,null,null,null,null,null,0]
[null,null,"الاربعاء","1442/4/17",null,null,null,null,null,null,null,null,null,null,null,null,null,null,null,null,null,null,null,null,null,null,0]
[null,null,"الخميس","1442/4/18",null,null,null,null,null,null,null,null,null,null,null,null,null,null,null,null,null,null,null,null,null,null,0]
[null,null,"الاحد","1442/4/21",null,null,null,null,null,null,null,null,null,null,null,null,null,null,null,null,null,null,null,null,null,null,0]
[null,null,"الاثنين","1442/4/22",null,null,null,null,null,null,null,null,null,null,null,null,null,null,null,null,null,null,null,null,null,null,0]
[null,null,"الثلاثاء","1442/4/23",null,null,null,null,null,null,null,null,null,null,null,null,null,null,null,null,null,null,null,null,null,null,0]
[null,null,"الاربعاء","1442/4/24",null,null,null,null,null,null,null,null,null,null,null,null,null,null,null,null,null,null,null,null,null,null,0]
[null,null,"الخميس","1442/4/25",null,null,null,null,null,null,null,null,null,null,null,null,null,null,null,null,null,null,null,null,null,null,0]

{"sheet":"ورقة1 (15)","index":14,"n_rows":28,"n_cols":28,"rows_kept":28,"cut":false,"hidden":false,"merged":[[1,3,1,5],[2,3,2,5],[2,19,2,20],[2,21,2,22],[3,3,3,5],[3,6,3,7],[3,19,3,20],[3,21,3,22],[4,19,4,20],[4,21,4,22],[5,3,5,5],[5,7,5,9],[5,19,5,20],[5,21,5,22],[6,3,6,10],[29,3,29,4],[29,5,29,6],[4,3,4,5],[4,6,4,8]]}
[null,null,null,"برنامج المتابعة الالكترونية التجريبي لحلقة عبد الله بن مسعود",null,null,null,"    بمكة المكرمة",null,"التابعة لجمعية","تحفيظ القرآن الكريم",null,null,"                     نسعى لمواكبة العصر في تطوراته لخدمة كتاب الله عزوجل",null,null,null,1,"تعليما",2,"وتعلما",3,"وتقنيا","               على وفق خطة مرسومة",null,"بالقرآن نرقى وبه نرتقي","أنشأه: عبد الرحمن إمام"]
[null,null,"   تاريخ بداية الحلقة"," معلم الحلقة",null,null,null,null,null,null,"عدد أسطر الدرس",{"$f":"I9+I10+I11+I12+I13+I14+I15+I16+I17+I18+I19+I20+I21+I22+I23+I24+I25+I26+I27+I28","v":0},null,"عدد صفحات الدرس المحفوظ",{"$f":"L2/15","v":0},null,"عدد الأخطاء ",{"$f":"J9+J10+J11+J12+J13+J14+J15+J16+J17+J18+J19+J20+J21+J22+J23+J24+J25+J26+J27+J28","v":0},null,null,"المواظبة","السلوك",null,"      نسبة الفصل الأول ","المستوى الحالي","أبيات التحفة المحفوظة","معدل الدرجات"]
[null,null," 1441/12/18",null,null,null,null,null,null,null,"عدد أسطر بداية السورة",{"$f":"L9+L10+L11+L12+L13+L14+L15+L16+L17+L18+L19+L20+L21+L22+L23+L24+L25+L26+L27+L28","v":0},null,"عدد صفحات بداية السورة",{"$f":"L3/15","v":0},null,"عدد الأخطاء ",{"$f":"M9+M10+M11+M12+M13+M14+M15+M16+M17+M18+M19+M20+M21+M22+M23+M24+M25+M26+M27+M28","v":0},null,"  حضور مبكر",null,"عدد أيام التأخر",null,{"$f":"AA3","v":0},null,null,{"$f":"AA5/6","v":0}]
[null,null,"اسم الطالب",null,null,null,"اسم الحلقة",null,null,null,"عدد أسطر سورة قبل الدرس",{"$f":"O9+O10+O11+O12+O13+O14+O15+O16+O17+O18+O19+O20+O21+O22+O23+O24+O25+O26+O27+O28","v":0},null,"عدد صفحات سورة قبل الدرس",{"$f":"L4/15","v":0},null,"عدد الأخطاء ",{"$f":"P9+P10+P11+P12+P13+P14+P15+P16+P17+P18+P19+P20+P21+P22+P23+P24+P25+P26+P27+P28","v":0},null,{"$f":"COUNTIFS(G9:G28,\"ح\")","v":0},null,{"$f":"COUNTIF(G9:G28,\"ت\")","v":0},null,"نسبة الفصل الثاني","درجة أخر اختبار ","أبيات الجزرية المحفوظة","مجموع النقاط"]
[null,null,"رسالة خاصة بالطالب",null,null,null,"عبد الله بن مسعود رضي الله عنه",null,null,null,"عدد أسطر المراجعة",{"$f":"R9+R10+R11+R12+R13+R14+R15+R16+R17+R18+R19+R20+R21+R22+R23+R24+R25+R26+R27+R28","v":0},null,"عدد صفحات المراجعة",{"$f":"L5/15","v":0},null,"عدد الأخطاء ",{"$f":"S9+S10+S11+S12+S13+S14+S15+S16+S17+S18+S19+S20+S21+S22+S23+S24+S25+S26+S27+S28","v":0},null,"استئذان",null,"عدد  أيام الغياب",null,null,null,null,{"$f":"AA9+AA10+AA11+AA12+AA13+AA14+AA15+AA16+AA17+AA18+AA19+AA20+AA21+AA22+AA23+AA24+AA25+AA26+AA27+AA28","v":0}]
[null,null,"رسالة خاصة بالحلقة",null,null,null,"وقتها","بعد صلاة العشاء عن بعد",null,null,null,null,null,"المجموع الكلي لصفحات المراجعة",null,null,null,null,null,{"$f":"COUNTIF(G9:G28,\"م\")","v":0},null,{"$f":"COUNTIF(G9:G28,\"غ\")","v":0},null,"المعدل الكلي",null,"أبيات الشاطبية المحفوظة","النقاط المستبدلة"]
[null,null,null,"مدة تجربة البرنامج من تاريخ 1442/3/22هـ إلى نهاية الفصل الأول 1442/4/25 هــ",null,null,null,null,null,null,null,null,null,{"$f":"O5+O4+O3","v":0}]
[null,null,"الأيام ","التاريخ","المسار","المقررات","تحضير","الدرس","سطر","خطأ","بداية السورة","سطر","خطأ","سورة قبل الدرس","سطر","خطأ","المراجعة","سطر","خطأ","ملاحظات في التسميع","الدرس  10","التجويد 10","بداية السورة 10","سورة قبل الدرس 10","المراجعة 10","المشاركة+ التفاعل 10","مجموع النقاط اليومي","الملاحظات"]
[null,null,"الاحد","1442/3/29",null,null,null,null,null,null,null,null,null,null,null,null,null,null,null,null,null,null,null,null,null,null,{"$f":"Z9+Y9+X9+W9+U9+V9","v":0}]
[null,null,"الاثنين","1442/4/1",null,null,null,null,null,null,null,null,null,null,null,null,null,null,null,null,null,null,null,null,null,null,{"$f":"Z10+Y10+X10+W10+U10+V10","v":0}]
[null,null,"الثلاثاء","1442/4/2",null,null,null,null,null,null,null,null,null,null,null,null,null,null,null,null,null,null,null,null,null,null,0]
[null,null,"الاربعاء","1442/4/3",null,null,null,null,null,null,null,null,null,null,null,null,null,null,null,null,null,null,null,null,null,null,0]
[null,null,"الخميس","1442/4/4",null,null,null,null,null,null,null,null,null,null,null,null,null,null,null,null,null,null,null,null,null,null,0]
[null,null,"الاحد","1442/4/7",null,null,null,null,null,null,null,null,null,null,null,null,null,null,null,null,null,null,null,null,null,null,0]
[null,null,"الاثنين","1442/4/8",null,null,null,null,null,null,null,null,null,null,null,null,null,null,null,null,null,null,null,null,null,null,0]
[null,null,"الثلاثاء","1442/4/9",null,null,null,null,null,null,null,null,null,null,null,null,null,null,null,null,null,null,null,null,null,null,0]
[null,null,"الاربعاء","1442/4/10",null,null,null,null,null,null,null,null,null,null,null,null,null,null,null,null,null,null,null,null,null,null,0]
[null,null,"الخميس","1442/4/11",null,null,null,null,null,null,null,null,null,null,null,null,null,null,null,null,null,null,null,null,null,null,0]
[null,null,"الاحد","1442/4/14",null,null,null,null,null,null,null,null,null,null,null,null,null,null,null,null,null,null,null,null,null,null,0]
[null,null,"الاثنين","1442/4/15",null,null,null,null,null,null,null,null,null,null,null,null,null,null,null,null,null,null,null,null,null,null,0]
[null,null,"الثلاثاء","1442/4/16",null,null,null,null,null,null,null,null,null,null,null,null,null,null,null,null,null,null,null,null,null,null,0]
[null,null,"الاربعاء","1442/4/17",null,null,null,null,null,null,null,null,null,null,null,null,null,null,null,null,null,null,null,null,null,null,0]
[null,null,"الخميس","1442/4/18",null,null,null,null,null,null,null,null,null,null,null,null,null,null,null,null,null,null,null,null,null,null,0]
[null,null,"الاحد","1442/4/21",null,null,null,null,null,null,null,null,null,null,null,null,null,null,null,null,null,null,null,null,null,null,0]
[null,null,"الاثنين","1442/4/22",null,null,null,null,null,null,null,null,null,null,null,null,null,null,null,null,null,null,null,null,null,null,0]
[null,null,"الثلاثاء","1442/4/23",null,null,null,null,null,null,null,null,null,null,null,null,null,null,null,null,null,null,null,null,null,null,0]
[null,null,"الاربعاء","1442/4/24",null,null,null,null,null,null,null,null,null,null,null,null,null,null,null,null,null,null,null,null,null,null,0]
[null,null,"الخميس","1442/4/25",null,null,null,null,null,null,null,null,null,null,null,null,null,null,null,null,null,null,null,null,null,null,0]

{"sheet":"ورقة1 (16)","index":15,"n_rows":28,"n_cols":28,"rows_kept":28,"cut":false,"hidden":false,"merged":[[1,3,1,5],[2,3,2,5],[2,19,2,20],[2,21,2,22],[3,3,3,5],[3,6,3,7],[3,19,3,20],[3,21,3,22],[4,19,4,20],[4,21,4,22],[5,3,5,5],[5,7,5,9],[5,19,5,20],[5,21,5,22],[6,3,6,10],[29,3,29,4],[29,5,29,6],[4,3,4,5],[4,6,4,8]]}
[null,null,null,"برنامج المتابعة الالكترونية التجريبي لحلقة عبد الله بن مسعود",null,null,null,"    بمكة المكرمة",null,"التابعة لجمعية","تحفيظ القرآن الكريم",null,null,"                     نسعى لمواكبة العصر في تطوراته لخدمة كتاب الله عزوجل",null,null,null,1,"تعليما",2,"وتعلما",3,"وتقنيا","               على وفق خطة مرسومة",null,"بالقرآن نرقى وبه نرتقي","أنشأه: عبد الرحمن إمام"]
[null,null,"   تاريخ بداية الحلقة"," معلم الحلقة",null,null,null,null,null,null,"عدد أسطر الدرس",{"$f":"I9+I10+I11+I12+I13+I14+I15+I16+I17+I18+I19+I20+I21+I22+I23+I24+I25+I26+I27+I28","v":0},null,"عدد صفحات الدرس المحفوظ",{"$f":"L2/15","v":0},null,"عدد الأخطاء ",{"$f":"J9+J10+J11+J12+J13+J14+J15+J16+J17+J18+J19+J20+J21+J22+J23+J24+J25+J26+J27+J28","v":0},null,null,"المواظبة","السلوك",null,"      نسبة الفصل الأول ","المستوى الحالي","أبيات التحفة المحفوظة","معدل الدرجات"]
[null,null," 1441/12/18",null,null,null,null,null,null,null,"عدد أسطر بداية السورة",{"$f":"L9+L10+L11+L12+L13+L14+L15+L16+L17+L18+L19+L20+L21+L22+L23+L24+L25+L26+L27+L28","v":0},null,"عدد صفحات بداية السورة",{"$f":"L3/15","v":0},null,"عدد الأخطاء ",{"$f":"M9+M10+M11+M12+M13+M14+M15+M16+M17+M18+M19+M20+M21+M22+M23+M24+M25+M26+M27+M28","v":0},null,"  حضور مبكر",null,"عدد أيام التأخر",null,{"$f":"AA3","v":0},null,null,{"$f":"AA5/6","v":0}]
[null,null,"اسم الطالب",null,null,null,"اسم الحلقة",null,null,null,"عدد أسطر سورة قبل الدرس",{"$f":"O9+O10+O11+O12+O13+O14+O15+O16+O17+O18+O19+O20+O21+O22+O23+O24+O25+O26+O27+O28","v":0},null,"عدد صفحات سورة قبل الدرس",{"$f":"L4/15","v":0},null,"عدد الأخطاء ",{"$f":"P9+P10+P11+P12+P13+P14+P15+P16+P17+P18+P19+P20+P21+P22+P23+P24+P25+P26+P27+P28","v":0},null,{"$f":"COUNTIFS(G9:G28,\"ح\")","v":0},null,{"$f":"COUNTIF(G9:G28,\"ت\")","v":0},null,"نسبة الفصل الثاني","درجة أخر اختبار ","أبيات الجزرية المحفوظة","مجموع النقاط"]
[null,null,"رسالة خاصة بالطالب",null,null,null,"عبد الله بن مسعود رضي الله عنه",null,null,null,"عدد أسطر المراجعة",{"$f":"R9+R10+R11+R12+R13+R14+R15+R16+R17+R18+R19+R20+R21+R22+R23+R24+R25+R26+R27+R28","v":0},null,"عدد صفحات المراجعة",{"$f":"L5/15","v":0},null,"عدد الأخطاء ",{"$f":"S9+S10+S11+S12+S13+S14+S15+S16+S17+S18+S19+S20+S21+S22+S23+S24+S25+S26+S27+S28","v":0},null,"استئذان",null,"عدد  أيام الغياب",null,null,null,null,{"$f":"AA9+AA10+AA11+AA12+AA13+AA14+AA15+AA16+AA17+AA18+AA19+AA20+AA21+AA22+AA23+AA24+AA25+AA26+AA27+AA28","v":0}]
[null,null,"رسالة خاصة بالحلقة",null,null,null,"وقتها","بعد صلاة العشاء عن بعد",null,null,null,null,null,"المجموع الكلي لصفحات المراجعة",null,null,null,null,null,{"$f":"COUNTIF(G9:G28,\"م\")","v":0},null,{"$f":"COUNTIF(G9:G28,\"غ\")","v":0},null,"المعدل الكلي",null,"أبيات الشاطبية المحفوظة","النقاط المستبدلة"]
[null,null,null,"مدة تجربة البرنامج من تاريخ 1442/3/22هـ إلى نهاية الفصل الأول 1442/4/25 هــ",null,null,null,null,null,null,null,null,null,{"$f":"O5+O4+O3","v":0}]
[null,null,"الأيام ","التاريخ","المسار","المقررات","تحضير","الدرس","سطر","خطأ","بداية السورة","سطر","خطأ","سورة قبل الدرس","سطر","خطأ","المراجعة","سطر","خطأ","ملاحظات في التسميع","الدرس  10","التجويد 10","بداية السورة 10","سورة قبل الدرس 10","المراجعة 10","المشاركة+ التفاعل 10","مجموع النقاط اليومي","الملاحظات"]
[null,null,"الاحد","1442/3/29",null,null,null,null,null,null,null,null,null,null,null,null,null,null,null,null,null,null,null,null,null,null,{"$f":"Z9+Y9+X9+W9+U9+V9","v":0}]
[null,null,"الاثنين","1442/4/1",null,null,null,null,null,null,null,null,null,null,null,null,null,null,null,null,null,null,null,null,null,null,{"$f":"Z10+Y10+X10+W10+U10+V10","v":0}]
[null,null,"الثلاثاء","1442/4/2",null,null,null,null,null,null,null,null,null,null,null,null,null,null,null,null,null,null,null,null,null,null,0]
[null,null,"الاربعاء","1442/4/3",null,null,null,null,null,null,null,null,null,null,null,null,null,null,null,null,null,null,null,null,null,null,0]
[null,null,"الخميس","1442/4/4",null,null,null,null,null,null,null,null,null,null,null,null,null,null,null,null,null,null,null,null,null,null,0]
[null,null,"الاحد","1442/4/7",null,null,null,null,null,null,null,null,null,null,null,null,null,null,null,null,null,null,null,null,null,null,0]
[null,null,"الاثنين","1442/4/8",null,null,null,null,null,null,null,null,null,null,null,null,null,null,null,null,null,null,null,null,null,null,0]
[null,null,"الثلاثاء","1442/4/9",null,null,null,null,null,null,null,null,null,null,null,null,null,null,null,null,null,null,null,null,null,null,0]
[null,null,"الاربعاء","1442/4/10",null,null,null,null,null,null,null,null,null,null,null,null,null,null,null,null,null,null,null,null,null,null,0]
[null,null,"الخميس","1442/4/11",null,null,null,null,null,null,null,null,null,null,null,null,null,null,null,null,null,null,null,null,null,null,0]
[null,null,"الاحد","1442/4/14",null,null,null,null,null,null,null,null,null,null,null,null,null,null,null,null,null,null,null,null,null,null,0]
[null,null,"الاثنين","1442/4/15",null,null,null,null,null,null,null,null,null,null,null,null,null,null,null,null,null,null,null,null,null,null,0]
[null,null,"الثلاثاء","1442/4/16",null,null,null,null,null,null,null,null,null,null,null,null,null,null,null,null,null,null,null,null,null,null,0]
[null,null,"الاربعاء","1442/4/17",null,null,null,null,null,null,null,null,null,null,null,null,null,null,null,null,null,null,null,null,null,null,0]
[null,null,"الخميس","1442/4/18",null,null,null,null,null,null,null,null,null,null,null,null,null,null,null,null,null,null,null,null,null,null,0]
[null,null,"الاحد","1442/4/21",null,null,null,null,null,null,null,null,null,null,null,null,null,null,null,null,null,null,null,null,null,null,0]
[null,null,"الاثنين","1442/4/22",null,null,null,null,null,null,null,null,null,null,null,null,null,null,null,null,null,null,null,null,null,null,0]
[null,null,"الثلاثاء","1442/4/23",null,null,null,null,null,null,null,null,null,null,null,null,null,null,null,null,null,null,null,null,null,null,0]
[null,null,"الاربعاء","1442/4/24",null,null,null,null,null,null,null,null,null,null,null,null,null,null,null,null,null,null,null,null,null,null,0]
[null,null,"الخميس","1442/4/25",null,null,null,null,null,null,null,null,null,null,null,null,null,null,null,null,null,null,null,null,null,null,0]

{"sheet":"ورقة1 (17)","index":16,"n_rows":28,"n_cols":28,"rows_kept":28,"cut":false,"hidden":false,"merged":[[1,3,1,5],[2,3,2,5],[2,19,2,20],[2,21,2,22],[3,3,3,5],[3,6,3,7],[3,19,3,20],[3,21,3,22],[4,19,4,20],[4,21,4,22],[5,3,5,5],[5,7,5,9],[5,19,5,20],[5,21,5,22],[6,3,6,10],[29,3,29,4],[29,5,29,6],[4,3,4,5],[4,6,4,8]]}
[null,null,null,"برنامج المتابعة الالكترونية التجريبي لحلقة عبد الله بن مسعود",null,null,null,"    بمكة المكرمة",null,"التابعة لجمعية","تحفيظ القرآن الكريم",null,null,"                     نسعى لمواكبة العصر في تطوراته لخدمة كتاب الله عزوجل",null,null,null,1,"تعليما",2,"وتعلما",3,"وتقنيا","               على وفق خطة مرسومة",null,"بالقرآن نرقى وبه نرتقي","أنشأه: عبد الرحمن إمام"]
[null,null,"   تاريخ بداية الحلقة"," معلم الحلقة",null,null,null,null,null,null,"عدد أسطر الدرس",{"$f":"I9+I10+I11+I12+I13+I14+I15+I16+I17+I18+I19+I20+I21+I22+I23+I24+I25+I26+I27+I28","v":0},null,"عدد صفحات الدرس المحفوظ",{"$f":"L2/15","v":0},null,"عدد الأخطاء ",{"$f":"J9+J10+J11+J12+J13+J14+J15+J16+J17+J18+J19+J20+J21+J22+J23+J24+J25+J26+J27+J28","v":0},null,null,"المواظبة","السلوك",null,"      نسبة الفصل الأول ","المستوى الحالي","أبيات التحفة المحفوظة","معدل الدرجات"]
[null,null," 1441/12/18",null,null,null,null,null,null,null,"عدد أسطر بداية السورة",{"$f":"L9+L10+L11+L12+L13+L14+L15+L16+L17+L18+L19+L20+L21+L22+L23+L24+L25+L26+L27+L28","v":0},null,"عدد صفحات بداية السورة",{"$f":"L3/15","v":0},null,"عدد الأخطاء ",{"$f":"M9+M10+M11+M12+M13+M14+M15+M16+M17+M18+M19+M20+M21+M22+M23+M24+M25+M26+M27+M28","v":0},null,"  حضور مبكر",null,"عدد أيام التأخر",null,{"$f":"AA3","v":0},null,null,{"$f":"AA5/6","v":0}]
[null,null,"اسم الطالب",null,null,null,"اسم الحلقة",null,null,null,"عدد أسطر سورة قبل الدرس",{"$f":"O9+O10+O11+O12+O13+O14+O15+O16+O17+O18+O19+O20+O21+O22+O23+O24+O25+O26+O27+O28","v":0},null,"عدد صفحات سورة قبل الدرس",{"$f":"L4/15","v":0},null,"عدد الأخطاء ",{"$f":"P9+P10+P11+P12+P13+P14+P15+P16+P17+P18+P19+P20+P21+P22+P23+P24+P25+P26+P27+P28","v":0},null,{"$f":"COUNTIFS(G9:G28,\"ح\")","v":0},null,{"$f":"COUNTIF(G9:G28,\"ت\")","v":0},null,"نسبة الفصل الثاني","درجة أخر اختبار ","أبيات الجزرية المحفوظة","مجموع النقاط"]
[null,null,"رسالة خاصة بالطالب",null,null,null,"عبد الله بن مسعود رضي الله عنه",null,null,null,"عدد أسطر المراجعة",{"$f":"R9+R10+R11+R12+R13+R14+R15+R16+R17+R18+R19+R20+R21+R22+R23+R24+R25+R26+R27+R28","v":0},null,"عدد صفحات المراجعة",{"$f":"L5/15","v":0},null,"عدد الأخطاء ",{"$f":"S9+S10+S11+S12+S13+S14+S15+S16+S17+S18+S19+S20+S21+S22+S23+S24+S25+S26+S27+S28","v":0},null,"استئذان",null,"عدد  أيام الغياب",null,null,null,null,{"$f":"AA9+AA10+AA11+AA12+AA13+AA14+AA15+AA16+AA17+AA18+AA19+AA20+AA21+AA22+AA23+AA24+AA25+AA26+AA27+AA28","v":0}]
[null,null,"رسالة خاصة بالحلقة",null,null,null,"وقتها","بعد صلاة العشاء عن بعد",null,null,null,null,null,"المجموع الكلي لصفحات المراجعة",null,null,null,null,null,{"$f":"COUNTIF(G9:G28,\"م\")","v":0},null,{"$f":"COUNTIF(G9:G28,\"غ\")","v":0},null,"المعدل الكلي",null,"أبيات الشاطبية المحفوظة","النقاط المستبدلة"]
[null,null,null,"مدة تجربة البرنامج من تاريخ 1442/3/22هـ إلى نهاية الفصل الأول 1442/4/25 هــ",null,null,null,null,null,null,null,null,null,{"$f":"O5+O4+O3","v":0}]
[null,null,"الأيام ","التاريخ","المسار","المقررات","تحضير","الدرس","سطر","خطأ","بداية السورة","سطر","خطأ","سورة قبل الدرس","سطر","خطأ","المراجعة","سطر","خطأ","ملاحظات في التسميع","الدرس  10","التجويد 10","بداية السورة 10","سورة قبل الدرس 10","المراجعة 10","المشاركة+ التفاعل 10","مجموع النقاط اليومي","الملاحظات"]
[null,null,"الاحد","1442/3/29",null,null,null,null,null,null,null,null,null,null,null,null,null,null,null,null,null,null,null,null,null,null,{"$f":"Z9+Y9+X9+W9+U9+V9","v":0}]
[null,null,"الاثنين","1442/4/1",null,null,null,null,null,null,null,null,null,null,null,null,null,null,null,null,null,null,null,null,null,null,{"$f":"Z10+Y10+X10+W10+U10+V10","v":0}]
[null,null,"الثلاثاء","1442/4/2",null,null,null,null,null,null,null,null,null,null,null,null,null,null,null,null,null,null,null,null,null,null,0]
[null,null,"الاربعاء","1442/4/3",null,null,null,null,null,null,null,null,null,null,null,null,null,null,null,null,null,null,null,null,null,null,0]
[null,null,"الخميس","1442/4/4",null,null,null,null,null,null,null,null,null,null,null,null,null,null,null,null,null,null,null,null,null,null,0]
[null,null,"الاحد","1442/4/7",null,null,null,null,null,null,null,null,null,null,null,null,null,null,null,null,null,null,null,null,null,null,0]
[null,null,"الاثنين","1442/4/8",null,null,null,null,null,null,null,null,null,null,null,null,null,null,null,null,null,null,null,null,null,null,0]
[null,null,"الثلاثاء","1442/4/9",null,null,null,null,null,null,null,null,null,null,null,null,null,null,null,null,null,null,null,null,null,null,0]
[null,null,"الاربعاء","1442/4/10",null,null,null,null,null,null,null,null,null,null,null,null,null,null,null,null,null,null,null,null,null,null,0]
[null,null,"الخميس","1442/4/11",null,null,null,null,null,null,null,null,null,null,null,null,null,null,null,null,null,null,null,null,null,null,0]
[null,null,"الاحد","1442/4/14",null,null,null,null,null,null,null,null,null,null,null,null,null,null,null,null,null,null,null,null,null,null,0]
[null,null,"الاثنين","1442/4/15",null,null,null,null,null,null,null,null,null,null,null,null,null,null,null,null,null,null,null,null,null,null,0]
[null,null,"الثلاثاء","1442/4/16",null,null,null,null,null,null,null,null,null,null,null,null,null,null,null,null,null,null,null,null,null,null,0]
[null,null,"الاربعاء","1442/4/17",null,null,null,null,null,null,null,null,null,null,null,null,null,null,null,null,null,null,null,null,null,null,0]
[null,null,"الخميس","1442/4/18",null,null,null,null,null,null,null,null,null,null,null,null,null,null,null,null,null,null,null,null,null,null,0]
[null,null,"الاحد","1442/4/21",null,null,null,null,null,null,null,null,null,null,null,null,null,null,null,null,null,null,null,null,null,null,0]
[null,null,"الاثنين","1442/4/22",null,null,null,null,null,null,null,null,null,null,null,null,null,null,null,null,null,null,null,null,null,null,0]
[null,null,"الثلاثاء","1442/4/23",null,null,null,null,null,null,null,null,null,null,null,null,null,null,null,null,null,null,null,null,null,null,0]
[null,null,"الاربعاء","1442/4/24",null,null,null,null,null,null,null,null,null,null,null,null,null,null,null,null,null,null,null,null,null,null,0]
[null,null,"الخميس","1442/4/25",null,null,null,null,null,null,null,null,null,null,null,null,null,null,null,null,null,null,null,null,null,null,0]

{"sheet":"ورقة1 (18)","index":17,"n_rows":28,"n_cols":28,"rows_kept":28,"cut":false,"hidden":false,"merged":[[1,3,1,5],[2,3,2,5],[2,19,2,20],[2,21,2,22],[3,3,3,5],[3,6,3,7],[3,19,3,20],[3,21,3,22],[4,19,4,20],[4,21,4,22],[5,3,5,5],[5,7,5,9],[5,19,5,20],[5,21,5,22],[6,3,6,10],[29,3,29,4],[29,5,29,6],[4,3,4,5],[4,6,4,8]]}
[null,null,null,"برنامج المتابعة الالكترونية التجريبي لحلقة عبد الله بن مسعود",null,null,null,"    بمكة المكرمة",null,"التابعة لجمعية","تحفيظ القرآن الكريم",null,null,"                     نسعى لمواكبة العصر في تطوراته لخدمة كتاب الله عزوجل",null,null,null,1,"تعليما",2,"وتعلما",3,"وتقنيا","               على وفق خطة مرسومة",null,"بالقرآن نرقى وبه نرتقي","أنشأه: عبد الرحمن إمام"]
[null,null,"   تاريخ بداية الحلقة"," معلم الحلقة",null,null,null,null,null,null,"عدد أسطر الدرس",{"$f":"I9+I10+I11+I12+I13+I14+I15+I16+I17+I18+I19+I20+I21+I22+I23+I24+I25+I26+I27+I28","v":0},null,"عدد صفحات الدرس المحفوظ",{"$f":"L2/15","v":0},null,"عدد الأخطاء ",{"$f":"J9+J10+J11+J12+J13+J14+J15+J16+J17+J18+J19+J20+J21+J22+J23+J24+J25+J26+J27+J28","v":0},null,null,"المواظبة","السلوك",null,"      نسبة الفصل الأول ","المستوى الحالي","أبيات التحفة المحفوظة","معدل الدرجات"]
[null,null," 1441/12/18",null,null,null,null,null,null,null,"عدد أسطر بداية السورة",{"$f":"L9+L10+L11+L12+L13+L14+L15+L16+L17+L18+L19+L20+L21+L22+L23+L24+L25+L26+L27+L28","v":0},null,"عدد صفحات بداية السورة",{"$f":"L3/15","v":0},null,"عدد الأخطاء ",{"$f":"M9+M10+M11+M12+M13+M14+M15+M16+M17+M18+M19+M20+M21+M22+M23+M24+M25+M26+M27+M28","v":0},null,"  حضور مبكر",null,"عدد أيام التأخر",null,{"$f":"AA3","v":0},null,null,{"$f":"AA5/6","v":0}]
[null,null,"اسم الطالب",null,null,null,"اسم الحلقة",null,null,null,"عدد أسطر سورة قبل الدرس",{"$f":"O9+O10+O11+O12+O13+O14+O15+O16+O17+O18+O19+O20+O21+O22+O23+O24+O25+O26+O27+O28","v":0},null,"عدد صفحات سورة قبل الدرس",{"$f":"L4/15","v":0},null,"عدد الأخطاء ",{"$f":"P9+P10+P11+P12+P13+P14+P15+P16+P17+P18+P19+P20+P21+P22+P23+P24+P25+P26+P27+P28","v":0},null,{"$f":"COUNTIFS(G9:G28,\"ح\")","v":0},null,{"$f":"COUNTIF(G9:G28,\"ت\")","v":0},null,"نسبة الفصل الثاني","درجة أخر اختبار ","أبيات الجزرية المحفوظة","مجموع النقاط"]
[null,null,"رسالة خاصة بالطالب",null,null,null,"عبد الله بن مسعود رضي الله عنه",null,null,null,"عدد أسطر المراجعة",{"$f":"R9+R10+R11+R12+R13+R14+R15+R16+R17+R18+R19+R20+R21+R22+R23+R24+R25+R26+R27+R28","v":0},null,"عدد صفحات المراجعة",{"$f":"L5/15","v":0},null,"عدد الأخطاء ",{"$f":"S9+S10+S11+S12+S13+S14+S15+S16+S17+S18+S19+S20+S21+S22+S23+S24+S25+S26+S27+S28","v":0},null,"استئذان",null,"عدد  أيام الغياب",null,null,null,null,{"$f":"AA9+AA10+AA11+AA12+AA13+AA14+AA15+AA16+AA17+AA18+AA19+AA20+AA21+AA22+AA23+AA24+AA25+AA26+AA27+AA28","v":0}]
[null,null,"رسالة خاصة بالحلقة",null,null,null,"وقتها","بعد صلاة العشاء عن بعد",null,null,null,null,null,"المجموع الكلي لصفحات المراجعة",null,null,null,null,null,{"$f":"COUNTIF(G9:G28,\"م\")","v":0},null,{"$f":"COUNTIF(G9:G28,\"غ\")","v":0},null,"المعدل الكلي",null,"أبيات الشاطبية المحفوظة","النقاط المستبدلة"]
[null,null,null,"مدة تجربة البرنامج من تاريخ 1442/3/22هـ إلى نهاية الفصل الأول 1442/4/25 هــ",null,null,null,null,null,null,null,null,null,{"$f":"O5+O4+O3","v":0}]
[null,null,"الأيام ","التاريخ","المسار","المقررات","تحضير","الدرس","سطر","خطأ","بداية السورة","سطر","خطأ","سورة قبل الدرس","سطر","خطأ","المراجعة","سطر","خطأ","ملاحظات في التسميع","الدرس  10","التجويد 10","بداية السورة 10","سورة قبل الدرس 10","المراجعة 10","المشاركة+ التفاعل 10","مجموع النقاط اليومي","الملاحظات"]
[null,null,"الاحد","1442/3/29",null,null,null,null,null,null,null,null,null,null,null,null,null,null,null,null,null,null,null,null,null,null,{"$f":"Z9+Y9+X9+W9+U9+V9","v":0}]
[null,null,"الاثنين","1442/4/1",null,null,null,null,null,null,null,null,null,null,null,null,null,null,null,null,null,null,null,null,null,null,{"$f":"Z10+Y10+X10+W10+U10+V10","v":0}]
[null,null,"الثلاثاء","1442/4/2",null,null,null,null,null,null,null,null,null,null,null,null,null,null,null,null,null,null,null,null,null,null,0]
[null,null,"الاربعاء","1442/4/3",null,null,null,null,null,null,null,null,null,null,null,null,null,null,null,null,null,null,null,null,null,null,0]
[null,null,"الخميس","1442/4/4",null,null,null,null,null,null,null,null,null,null,null,null,null,null,null,null,null,null,null,null,null,null,0]
[null,null,"الاحد","1442/4/7",null,null,null,null,null,null,null,null,null,null,null,null,null,null,null,null,null,null,null,null,null,null,0]
[null,null,"الاثنين","1442/4/8",null,null,null,null,null,null,null,null,null,null,null,null,null,null,null,null,null,null,null,null,null,null,0]
[null,null,"الثلاثاء","1442/4/9",null,null,null,null,null,null,null,null,null,null,null,null,null,null,null,null,null,null,null,null,null,null,0]
[null,null,"الاربعاء","1442/4/10",null,null,null,null,null,null,null,null,null,null,null,null,null,null,null,null,null,null,null,null,null,null,0]
[null,null,"الخميس","1442/4/11",null,null,null,null,null,null,null,null,null,null,null,null,null,null,null,null,null,null,null,null,null,null,0]
[null,null,"الاحد","1442/4/14",null,null,null,null,null,null,null,null,null,null,null,null,null,null,null,null,null,null,null,null,null,null,0]
[null,null,"الاثنين","1442/4/15",null,null,null,null,null,null,null,null,null,null,null,null,null,null,null,null,null,null,null,null,null,null,0]
[null,null,"الثلاثاء","1442/4/16",null,null,null,null,null,null,null,null,null,null,null,null,null,null,null,null,null,null,null,null,null,null,0]
[null,null,"الاربعاء","1442/4/17",null,null,null,null,null,null,null,null,null,null,null,null,null,null,null,null,null,null,null,null,null,null,0]
[null,null,"الخميس","1442/4/18",null,null,null,null,null,null,null,null,null,null,null,null,null,null,null,null,null,null,null,null,null,null,0]
[null,null,"الاحد","1442/4/21",null,null,null,null,null,null,null,null,null,null,null,null,null,null,null,null,null,null,null,null,null,null,0]
[null,null,"الاثنين","1442/4/22",null,null,null,null,null,null,null,null,null,null,null,null,null,null,null,null,null,null,null,null,null,null,0]
[null,null,"الثلاثاء","1442/4/23",null,null,null,null,null,null,null,null,null,null,null,null,null,null,null,null,null,null,null,null,null,null,0]
[null,null,"الاربعاء","1442/4/24",null,null,null,null,null,null,null,null,null,null,null,null,null,null,null,null,null,null,null,null,null,null,0]
[null,null,"الخميس","1442/4/25",null,null,null,null,null,null,null,null,null,null,null,null,null,null,null,null,null,null,null,null,null,null,0]

{"sheet":"ورقة1 (19)","index":18,"n_rows":28,"n_cols":28,"rows_kept":28,"cut":false,"hidden":false,"merged":[[1,3,1,5],[2,3,2,5],[2,19,2,20],[2,21,2,22],[3,3,3,5],[3,6,3,7],[3,19,3,20],[3,21,3,22],[4,19,4,20],[4,21,4,22],[5,3,5,5],[5,7,5,9],[5,19,5,20],[5,21,5,22],[6,3,6,10],[29,3,29,4],[29,5,29,6],[4,3,4,5],[4,6,4,8]]}
[null,null,null,"برنامج المتابعة الالكترونية التجريبي لحلقة عبد الله بن مسعود",null,null,null,"    بمكة المكرمة",null,"التابعة لجمعية","تحفيظ القرآن الكريم",null,null,"                     نسعى لمواكبة العصر في تطوراته لخدمة كتاب الله عزوجل",null,null,null,1,"تعليما",2,"وتعلما",3,"وتقنيا","               على وفق خطة مرسومة",null,"بالقرآن نرقى وبه نرتقي","أنشأه: عبد الرحمن إمام"]
[null,null,"   تاريخ بداية الحلقة"," معلم الحلقة",null,null,null,null,null,null,"عدد أسطر الدرس",{"$f":"I9+I10+I11+I12+I13+I14+I15+I16+I17+I18+I19+I20+I21+I22+I23+I24+I25+I26+I27+I28","v":0},null,"عدد صفحات الدرس المحفوظ",{"$f":"L2/15","v":0},null,"عدد الأخطاء ",{"$f":"J9+J10+J11+J12+J13+J14+J15+J16+J17+J18+J19+J20+J21+J22+J23+J24+J25+J26+J27+J28","v":0},null,null,"المواظبة","السلوك",null,"      نسبة الفصل الأول ","المستوى الحالي","أبيات التحفة المحفوظة","معدل الدرجات"]
[null,null," 1441/12/18",null,null,null,null,null,null,null,"عدد أسطر بداية السورة",{"$f":"L9+L10+L11+L12+L13+L14+L15+L16+L17+L18+L19+L20+L21+L22+L23+L24+L25+L26+L27+L28","v":0},null,"عدد صفحات بداية السورة",{"$f":"L3/15","v":0},null,"عدد الأخطاء ",{"$f":"M9+M10+M11+M12+M13+M14+M15+M16+M17+M18+M19+M20+M21+M22+M23+M24+M25+M26+M27+M28","v":0},null,"  حضور مبكر",null,"عدد أيام التأخر",null,{"$f":"AA3","v":0},null,null,{"$f":"AA5/6","v":0}]
[null,null,"اسم الطالب",null,null,null,"اسم الحلقة",null,null,null,"عدد أسطر سورة قبل الدرس",{"$f":"O9+O10+O11+O12+O13+O14+O15+O16+O17+O18+O19+O20+O21+O22+O23+O24+O25+O26+O27+O28","v":0},null,"عدد صفحات سورة قبل الدرس",{"$f":"L4/15","v":0},null,"عدد الأخطاء ",{"$f":"P9+P10+P11+P12+P13+P14+P15+P16+P17+P18+P19+P20+P21+P22+P23+P24+P25+P26+P27+P28","v":0},null,{"$f":"COUNTIFS(G9:G28,\"ح\")","v":0},null,{"$f":"COUNTIF(G9:G28,\"ت\")","v":0},null,"نسبة الفصل الثاني","درجة أخر اختبار ","أبيات الجزرية المحفوظة","مجموع النقاط"]
[null,null,"رسالة خاصة بالطالب",null,null,null,"عبد الله بن مسعود رضي الله عنه",null,null,null,"عدد أسطر المراجعة",{"$f":"R9+R10+R11+R12+R13+R14+R15+R16+R17+R18+R19+R20+R21+R22+R23+R24+R25+R26+R27+R28","v":0},null,"عدد صفحات المراجعة",{"$f":"L5/15","v":0},null,"عدد الأخطاء ",{"$f":"S9+S10+S11+S12+S13+S14+S15+S16+S17+S18+S19+S20+S21+S22+S23+S24+S25+S26+S27+S28","v":0},null,"استئذان",null,"عدد  أيام الغياب",null,null,null,null,{"$f":"AA9+AA10+AA11+AA12+AA13+AA14+AA15+AA16+AA17+AA18+AA19+AA20+AA21+AA22+AA23+AA24+AA25+AA26+AA27+AA28","v":0}]
[null,null,"رسالة خاصة بالحلقة",null,null,null,"وقتها","بعد صلاة العشاء عن بعد",null,null,null,null,null,"المجموع الكلي لصفحات المراجعة",null,null,null,null,null,{"$f":"COUNTIF(G9:G28,\"م\")","v":0},null,{"$f":"COUNTIF(G9:G28,\"غ\")","v":0},null,"المعدل الكلي",null,"أبيات الشاطبية المحفوظة","النقاط المستبدلة"]
[null,null,null,"مدة تجربة البرنامج من تاريخ 1442/3/22هـ إلى نهاية الفصل الأول 1442/4/25 هــ",null,null,null,null,null,null,null,null,null,{"$f":"O5+O4+O3","v":0}]
[null,null,"الأيام ","التاريخ","المسار","المقررات","تحضير","الدرس","سطر","خطأ","بداية السورة","سطر","خطأ","سورة قبل الدرس","سطر","خطأ","المراجعة","سطر","خطأ","ملاحظات في التسميع","الدرس  10","التجويد 10","بداية السورة 10","سورة قبل الدرس 10","المراجعة 10","المشاركة+ التفاعل 10","مجموع النقاط اليومي","الملاحظات"]
[null,null,"الاحد","1442/3/29",null,null,null,null,null,null,null,null,null,null,null,null,null,null,null,null,null,null,null,null,null,null,{"$f":"Z9+Y9+X9+W9+U9+V9","v":0}]
[null,null,"الاثنين","1442/4/1",null,null,null,null,null,null,null,null,null,null,null,null,null,null,null,null,null,null,null,null,null,null,{"$f":"Z10+Y10+X10+W10+U10+V10","v":0}]
[null,null,"الثلاثاء","1442/4/2",null,null,null,null,null,null,null,null,null,null,null,null,null,null,null,null,null,null,null,null,null,null,0]
[null,null,"الاربعاء","1442/4/3",null,null,null,null,null,null,null,null,null,null,null,null,null,null,null,null,null,null,null,null,null,null,0]
[null,null,"الخميس","1442/4/4",null,null,null,null,null,null,null,null,null,null,null,null,null,null,null,null,null,null,null,null,null,null,0]
[null,null,"الاحد","1442/4/7",null,null,null,null,null,null,null,null,null,null,null,null,null,null,null,null,null,null,null,null,null,null,0]
[null,null,"الاثنين","1442/4/8",null,null,null,null,null,null,null,null,null,null,null,null,null,null,null,null,null,null,null,null,null,null,0]
[null,null,"الثلاثاء","1442/4/9",null,null,null,null,null,null,null,null,null,null,null,null,null,null,null,null,null,null,null,null,null,null,0]
[null,null,"الاربعاء","1442/4/10",null,null,null,null,null,null,null,null,null,null,null,null,null,null,null,null,null,null,null,null,null,null,0]
[null,null,"الخميس","1442/4/11",null,null,null,null,null,null,null,null,null,null,null,null,null,null,null,null,null,null,null,null,null,null,0]
[null,null,"الاحد","1442/4/14",null,null,null,null,null,null,null,null,null,null,null,null,null,null,null,null,null,null,null,null,null,null,0]
[null,null,"الاثنين","1442/4/15",null,null,null,null,null,null,null,null,null,null,null,null,null,null,null,null,null,null,null,null,null,null,0]
[null,null,"الثلاثاء","1442/4/16",null,null,null,null,null,null,null,null,null,null,null,null,null,null,null,null,null,null,null,null,null,null,0]
[null,null,"الاربعاء","1442/4/17",null,null,null,null,null,null,null,null,null,null,null,null,null,null,null,null,null,null,null,null,null,null,0]
[null,null,"الخميس","1442/4/18",null,null,null,null,null,null,null,null,null,null,null,null,null,null,null,null,null,null,null,null,null,null,0]
[null,null,"الاحد","1442/4/21",null,null,null,null,null,null,null,null,null,null,null,null,null,null,null,null,null,null,null,null,null,null,0]
[null,null,"الاثنين","1442/4/22",null,null,null,null,null,null,null,null,null,null,null,null,null,null,null,null,null,null,null,null,null,null,0]
[null,null,"الثلاثاء","1442/4/23",null,null,null,null,null,null,null,null,null,null,null,null,null,null,null,null,null,null,null,null,null,null,0]
[null,null,"الاربعاء","1442/4/24",null,null,null,null,null,null,null,null,null,null,null,null,null,null,null,null,null,null,null,null,null,null,0]
[null,null,"الخميس","1442/4/25",null,null,null,null,null,null,null,null,null,null,null,null,null,null,null,null,null,null,null,null,null,null,0]

{"sheet":"ورقة1 (20)","index":19,"n_rows":28,"n_cols":28,"rows_kept":28,"cut":false,"hidden":false,"merged":[[1,3,1,5],[2,3,2,5],[2,19,2,20],[2,21,2,22],[3,3,3,5],[3,6,3,7],[3,19,3,20],[3,21,3,22],[4,19,4,20],[4,21,4,22],[5,3,5,5],[5,7,5,9],[5,19,5,20],[5,21,5,22],[6,3,6,10],[29,3,29,4],[29,5,29,6],[4,3,4,5],[4,6,4,8]]}
[null,null,null,"برنامج المتابعة الالكترونية التجريبي لحلقة عبد الله بن مسعود",null,null,null,"    بمكة المكرمة",null,"التابعة لجمعية","تحفيظ القرآن الكريم",null,null,"                     نسعى لمواكبة العصر في تطوراته لخدمة كتاب الله عزوجل",null,null,null,1,"تعليما",2,"وتعلما",3,"وتقنيا","               على وفق خطة مرسومة",null,"بالقرآن نرقى وبه نرتقي","أنشأه: عبد الرحمن إمام"]
[null,null,"   تاريخ بداية الحلقة"," معلم الحلقة",null,null,null,null,null,null,"عدد أسطر الدرس",{"$f":"I9+I10+I11+I12+I13+I14+I15+I16+I17+I18+I19+I20+I21+I22+I23+I24+I25+I26+I27+I28","v":0},null,"عدد صفحات الدرس المحفوظ",{"$f":"L2/15","v":0},null,"عدد الأخطاء ",{"$f":"J9+J10+J11+J12+J13+J14+J15+J16+J17+J18+J19+J20+J21+J22+J23+J24+J25+J26+J27+J28","v":0},null,null,"المواظبة","السلوك",null,"      نسبة الفصل الأول ","المستوى الحالي","أبيات التحفة المحفوظة","معدل الدرجات"]
[null,null," 1441/12/18",null,null,null,null,null,null,null,"عدد أسطر بداية السورة",{"$f":"L9+L10+L11+L12+L13+L14+L15+L16+L17+L18+L19+L20+L21+L22+L23+L24+L25+L26+L27+L28","v":0},null,"عدد صفحات بداية السورة",{"$f":"L3/15","v":0},null,"عدد الأخطاء ",{"$f":"M9+M10+M11+M12+M13+M14+M15+M16+M17+M18+M19+M20+M21+M22+M23+M24+M25+M26+M27+M28","v":0},null,"  حضور مبكر",null,"عدد أيام التأخر",null,{"$f":"AA3","v":0},null,null,{"$f":"AA5/6","v":0}]
[null,null,"اسم الطالب",null,null,null,"اسم الحلقة",null,null,null,"عدد أسطر سورة قبل الدرس",{"$f":"O9+O10+O11+O12+O13+O14+O15+O16+O17+O18+O19+O20+O21+O22+O23+O24+O25+O26+O27+O28","v":0},null,"عدد صفحات سورة قبل الدرس",{"$f":"L4/15","v":0},null,"عدد الأخطاء ",{"$f":"P9+P10+P11+P12+P13+P14+P15+P16+P17+P18+P19+P20+P21+P22+P23+P24+P25+P26+P27+P28","v":0},null,{"$f":"COUNTIFS(G9:G28,\"ح\")","v":0},null,{"$f":"COUNTIF(G9:G28,\"ت\")","v":0},null,"نسبة الفصل الثاني","درجة أخر اختبار ","أبيات الجزرية المحفوظة","مجموع النقاط"]
[null,null,"رسالة خاصة بالطالب",null,null,null,"عبد الله بن مسعود رضي الله عنه",null,null,null,"عدد أسطر المراجعة",{"$f":"R9+R10+R11+R12+R13+R14+R15+R16+R17+R18+R19+R20+R21+R22+R23+R24+R25+R26+R27+R28","v":0},null,"عدد صفحات المراجعة",{"$f":"L5/15","v":0},null,"عدد الأخطاء ",{"$f":"S9+S10+S11+S12+S13+S14+S15+S16+S17+S18+S19+S20+S21+S22+S23+S24+S25+S26+S27+S28","v":0},null,"استئذان",null,"عدد  أيام الغياب",null,null,null,null,{"$f":"AA9+AA10+AA11+AA12+AA13+AA14+AA15+AA16+AA17+AA18+AA19+AA20+AA21+AA22+AA23+AA24+AA25+AA26+AA27+AA28","v":0}]
[null,null,"رسالة خاصة بالحلقة",null,null,null,"وقتها","بعد صلاة العشاء عن بعد",null,null,null,null,null,"المجموع الكلي لصفحات المراجعة",null,null,null,null,null,{"$f":"COUNTIF(G9:G28,\"م\")","v":0},null,{"$f":"COUNTIF(G9:G28,\"غ\")","v":0},null,"المعدل الكلي",null,"أبيات الشاطبية المحفوظة","النقاط المستبدلة"]
[null,null,null,"مدة تجربة البرنامج من تاريخ 1442/3/22هـ إلى نهاية الفصل الأول 1442/4/25 هــ",null,null,null,null,null,null,null,null,null,{"$f":"O5+O4+O3","v":0}]
[null,null,"الأيام ","التاريخ","المسار","المقررات","تحضير","الدرس","سطر","خطأ","بداية السورة","سطر","خطأ","سورة قبل الدرس","سطر","خطأ","المراجعة","سطر","خطأ","ملاحظات في التسميع","الدرس  10","التجويد 10","بداية السورة 10","سورة قبل الدرس 10","المراجعة 10","المشاركة+ التفاعل 10","مجموع النقاط اليومي","الملاحظات"]
[null,null,"الاحد","1442/3/29",null,null,null,null,null,null,null,null,null,null,null,null,null,null,null,null,null,null,null,null,null,null,{"$f":"Z9+Y9+X9+W9+U9+V9","v":0}]
[null,null,"الاثنين","1442/4/1",null,null,null,null,null,null,null,null,null,null,null,null,null,null,null,null,null,null,null,null,null,null,{"$f":"Z10+Y10+X10+W10+U10+V10","v":0}]
[null,null,"الثلاثاء","1442/4/2",null,null,null,null,null,null,null,null,null,null,null,null,null,null,null,null,null,null,null,null,null,null,0]
[null,null,"الاربعاء","1442/4/3",null,null,null,null,null,null,null,null,null,null,null,null,null,null,null,null,null,null,null,null,null,null,0]
[null,null,"الخميس","1442/4/4",null,null,null,null,null,null,null,null,null,null,null,null,null,null,null,null,null,null,null,null,null,null,0]
[null,null,"الاحد","1442/4/7",null,null,null,null,null,null,null,null,null,null,null,null,null,null,null,null,null,null,null,null,null,null,0]
[null,null,"الاثنين","1442/4/8",null,null,null,null,null,null,null,null,null,null,null,null,null,null,null,null,null,null,null,null,null,null,0]
[null,null,"الثلاثاء","1442/4/9",null,null,null,null,null,null,null,null,null,null,null,null,null,null,null,null,null,null,null,null,null,null,0]
[null,null,"الاربعاء","1442/4/10",null,null,null,null,null,null,null,null,null,null,null,null,null,null,null,null,null,null,null,null,null,null,0]
[null,null,"الخميس","1442/4/11",null,null,null,null,null,null,null,null,null,null,null,null,null,null,null,null,null,null,null,null,null,null,0]
[null,null,"الاحد","1442/4/14",null,null,null,null,null,null,null,null,null,null,null,null,null,null,null,null,null,null,null,null,null,null,0]
[null,null,"الاثنين","1442/4/15",null,null,null,null,null,null,null,null,null,null,null,null,null,null,null,null,null,null,null,null,null,null,0]
[null,null,"الثلاثاء","1442/4/16",null,null,null,null,null,null,null,null,null,null,null,null,null,null,null,null,null,null,null,null,null,null,0]
[null,null,"الاربعاء","1442/4/17",null,null,null,null,null,null,null,null,null,null,null,null,null,null,null,null,null,null,null,null,null,null,0]
[null,null,"الخميس","1442/4/18",null,null,null,null,null,null,null,null,null,null,null,null,null,null,null,null,null,null,null,null,null,null,0]
[null,null,"الاحد","1442/4/21",null,null,null,null,null,null,null,null,null,null,null,null,null,null,null,null,null,null,null,null,null,null,0]
[null,null,"الاثنين","1442/4/22",null,null,null,null,null,null,null,null,null,null,null,null,null,null,null,null,null,null,null,null,null,null,0]
[null,null,"الثلاثاء","1442/4/23",null,null,null,null,null,null,null,null,null,null,null,null,null,null,null,null,null,null,null,null,null,null,0]
[null,null,"الاربعاء","1442/4/24",null,null,null,null,null,null,null,null,null,null,null,null,null,null,null,null,null,null,null,null,null,null,0]
[null,null,"الخميس","1442/4/25",null,null,null,null,null,null,null,null,null,null,null,null,null,null,null,null,null,null,null,null,null,null,0]

{"sheet":"ورقة3","index":20,"n_rows":0,"n_cols":0,"rows_kept":0,"cut":false,"hidden":false,"merged":[]}